Department Family,Entity,Date,Expense Type,Expense Area,Supplier,Transaction Number,AP Amount
Department of Health,St. Helens&Knowsley Hospitals NHS Trust,31/03/2023,AUC Additions,Balance Sheet,VINCI CONSTRUCTION UK LTD,46004743,"104,308.74"
Department of Health,St. Helens&Knowsley Hospitals NHS Trust,31/03/2023,Audit Fees: Ext non-stat,FINANCE DIRECTORATE HQ,GRANT THORNTON UK LLP,46220796,"68,625.00"
Department of Health,St. Helens&Knowsley Hospitals NHS Trust,31/03/2023,Audit Fees: Ext non-stat,FINANCE DIRECTORATE HQ,GRANT THORNTON UK LLP,46220796,"13,725.00"
Department of Health,St. Helens&Knowsley Hospitals NHS Trust,28/02/2023,Computer Hardware Purch,TRUST RECHARGES,DELL CORPORATION LTD,45642706,"1,500.01"
Department of Health,St. Helens&Knowsley Hospitals NHS Trust,28/02/2023,Computer Hardware Purch,TRUST RECHARGES,DELL CORPORATION LTD,45642706,"20,086.00"
Department of Health,St. Helens&Knowsley Hospitals NHS Trust,28/02/2023,Computer Hardware Purch,TRUST RECHARGES,DELL CORPORATION LTD,45642706,199.99
Department of Health,St. Helens&Knowsley Hospitals NHS Trust,31/03/2023,Computer Hardware Purch,TRUST RECHARGES,DELL CORPORATION LTD,46120973,"7,050.00"
Department of Health,St. Helens&Knowsley Hospitals NHS Trust,31/03/2023,Computer Hardware Purch,TRUST RECHARGES,DELL CORPORATION LTD,46120973,"45,650.00"
Department of Health,St. Helens&Knowsley Hospitals NHS Trust,31/03/2023,Computer Hardware Purch,TRUST RECHARGES,DELL CORPORATION LTD,46120973,"10,540.00"
Department of Health,St. Helens&Knowsley Hospitals NHS Trust,28/02/2023,Computer Maintenance,TRUST IT SYSTEMS,SYSTEM C HEALTHCARE LTD,45266396,"320,847.14"
Department of Health,St. Helens&Knowsley Hospitals NHS Trust,28/02/2023,Computer Maintenance,MMDA PROGRAMME COSTS - SHARED SERVICES,VOICE CONNECT LTD,45561234,"19,141.33"
Department of Health,St. Helens&Knowsley Hospitals NHS Trust,28/02/2023,Computer Maintenance,MMDA PROGRAMME COSTS - SHARED SERVICES,VOICE CONNECT LTD,45561234,"17,668.92"
Department of Health,St. Helens&Knowsley Hospitals NHS Trust,28/02/2023,Computer Maintenance,MMDA PROGRAMME COSTS - SHARED SERVICES,VOICE CONNECT LTD,45561234,"22,125.00"
Department of Health,St. Helens&Knowsley Hospitals NHS Trust,28/02/2023,Computer Maintenance,MMDA PROGRAMME COSTS - SHARED SERVICES,VOICE CONNECT LTD,45561234,"11,787.05"
Department of Health,St. Helens&Knowsley Hospitals NHS Trust,28/02/2023,Computer Maintenance,DIGITAL ASPIRATION PRGRME,SYSTEM C HEALTHCARE LTD,45616079,"64,707.77"
Department of Health,St. Helens&Knowsley Hospitals NHS Trust,28/02/2023,Computer Maintenance,DIGITAL ASPIRATION PRGRME,SYSTEM C HEALTHCARE LTD,45616083,"147,070.98"
Department of Health,St. Helens&Knowsley Hospitals NHS Trust,28/02/2023,Computer Maintenance,DIGITAL ASPIRATION PRGRME,SYSTEM C HEALTHCARE LTD,45616085,"112,543.20"
Department of Health,St. Helens&Knowsley Hospitals NHS Trust,31/03/2023,Computer Maintenance,STHK SWITCHBOARD,INSIGHT DIRECT (UK) LTD,44838345,"36,512.50"
Department of Health,St. Helens&Knowsley Hospitals NHS Trust,31/03/2023,Computer Maintenance,EMIS COMMUNITY PROJECT,EMIS (EGTON MEDICAL INFORMATION SYSTEMS LTD),46026128,"22,978.88"
Department of Health,St. Helens&Knowsley Hospitals NHS Trust,31/03/2023,Computer Maintenance,EMIS COMMUNITY PROJECT,EMIS (EGTON MEDICAL INFORMATION SYSTEMS LTD),46026128,"2,269.39"
Department of Health,St. Helens&Knowsley Hospitals NHS Trust,31/03/2023,Computer Maintenance,EMIS COMMUNITY PROJECT,EMIS (EGTON MEDICAL INFORMATION SYSTEMS LTD),46026128,"5,049.65"
Department of Health,St. Helens&Knowsley Hospitals NHS Trust,31/03/2023,Computer Maintenance,DIGITAL ASPIRATION PRGRME,SYSTEM C HEALTHCARE LTD,46045576,"32,353.88"
Department of Health,St. Helens&Knowsley Hospitals NHS Trust,31/03/2023,Computer Maintenance,DIGITAL ASPIRATION PRGRME,SYSTEM C HEALTHCARE LTD,46045579,"31,650.00"
Department of Health,St. Helens&Knowsley Hospitals NHS Trust,31/03/2023,Computer Maintenance,MMDA PROGRAMME COSTS - SHARED SERVICES,MTI TECHNOLOGY LTD,46319224,"4,419.50"
Department of Health,St. Helens&Knowsley Hospitals NHS Trust,31/03/2023,Computer Maintenance,MMDA PROGRAMME COSTS - SHARED SERVICES,MTI TECHNOLOGY LTD,46319224,"4,419.50"
Department of Health,St. Helens&Knowsley Hospitals NHS Trust,31/03/2023,Computer Maintenance,MMDA PROGRAMME COSTS - SHARED SERVICES,MTI TECHNOLOGY LTD,46319224,"4,419.50"
Department of Health,St. Helens&Knowsley Hospitals NHS Trust,31/03/2023,Computer Maintenance,MMDA PROGRAMME COSTS - SHARED SERVICES,MTI TECHNOLOGY LTD,46319224,"4,419.50"
Department of Health,St. Helens&Knowsley Hospitals NHS Trust,31/03/2023,Computer Maintenance,MMDA PROGRAMME COSTS - SHARED SERVICES,MTI TECHNOLOGY LTD,46319224,"2,891.44"
Department of Health,St. Helens&Knowsley Hospitals NHS Trust,31/03/2023,Computer Maintenance,MMDA PROGRAMME COSTS - SHARED SERVICES,MTI TECHNOLOGY LTD,46319224,"2,890.80"
Department of Health,St. Helens&Knowsley Hospitals NHS Trust,31/03/2023,Computer Maintenance,MMDA PROGRAMME COSTS - SHARED SERVICES,MTI TECHNOLOGY LTD,46319224,"2,890.75"
Department of Health,St. Helens&Knowsley Hospitals NHS Trust,31/03/2023,Computer Maintenance,MMDA PROGRAMME COSTS - SHARED SERVICES,MTI TECHNOLOGY LTD,46319224,"2,890.75"
Department of Health,St. Helens&Knowsley Hospitals NHS Trust,31/03/2023,Computer Maintenance,MMDA PROGRAMME COSTS - SHARED SERVICES,MTI TECHNOLOGY LTD,46319224,"5,113.65"
Department of Health,St. Helens&Knowsley Hospitals NHS Trust,31/03/2023,Computer Maintenance,MMDA PROGRAMME COSTS - SHARED SERVICES,MTI TECHNOLOGY LTD,46319224,"3,286.70"
Department of Health,St. Helens&Knowsley Hospitals NHS Trust,31/03/2023,Computer Maintenance,MMDA PROGRAMME COSTS - SHARED SERVICES,CDW LTD,46321776,"38,380.00"
Department of Health,St. Helens&Knowsley Hospitals NHS Trust,31/03/2023,Computer Maintenance,MMDA PROGRAMME COSTS - SHARED SERVICES,CDW LTD,46321776,"7,676.00"
Department of Health,St. Helens&Knowsley Hospitals NHS Trust,31/03/2023,Computer Maintenance,TRUST IT SYSTEMS,INSIGHT DIRECT (UK) LTD,46335333,"1,386.00"
Department of Health,St. Helens&Knowsley Hospitals NHS Trust,31/03/2023,Computer Maintenance,TRUST IT SYSTEMS,INSIGHT DIRECT (UK) LTD,46335333,"24,685.49"
Department of Health,St. Helens&Knowsley Hospitals NHS Trust,31/03/2023,Computer Maintenance,TRUST IT SYSTEMS,INSIGHT DIRECT (UK) LTD,46335333,"7,875.00"
Department of Health,St. Helens&Knowsley Hospitals NHS Trust,31/03/2023,Computer Maintenance,TRUST IT SYSTEMS,INSIGHT DIRECT (UK) LTD,46335333,"6,789.30"
Department of Health,St. Helens&Knowsley Hospitals NHS Trust,28/02/2023,Computer Software/License,I T EXECUTIVE,SUNRISE SOFTWARE LTD,45686627,"24,502.00"
Department of Health,St. Helens&Knowsley Hospitals NHS Trust,31/03/2023,Computer Software/License,PAYROLL SERVICES,SOFTCAT PLC,46047510,"101,853.04"
Department of Health,St. Helens&Knowsley Hospitals NHS Trust,31/03/2023,Computer Software/License,PAYROLL SERVICES,SOFTCAT PLC,46047510,"20,370.61"
Department of Health,St. Helens&Knowsley Hospitals NHS Trust,31/03/2023,Computer Software/License,MMDA PROGRAMME COSTS - SHARED SERVICES,BOTTOMLINE TECHNOLOGIES LTD,46061062,"25,200.02"
Department of Health,St. Helens&Knowsley Hospitals NHS Trust,31/03/2023,Computer Software/License,TRUST IT SYSTEMS,PHOENIX PARTNERSHIP (LEEDS) LTD,46266115,"25,280.76"
Department of Health,St. Helens&Knowsley Hospitals NHS Trust,31/03/2023,Computer Software/License,TRUST IT SYSTEMS,PHOENIX PARTNERSHIP (LEEDS) LTD,46266115,"5,056.15"
Department of Health,St. Helens&Knowsley Hospitals NHS Trust,31/03/2023,Computer Software/License,SEXUAL HEALTH,IDOX SOFTWARE LTD,46335329,"21,516.33"
Department of Health,St. Helens&Knowsley Hospitals NHS Trust,31/03/2023,Computer Software/License,SEXUAL HEALTH,IDOX SOFTWARE LTD,46335329,"4,303.27"
Department of Health,St. Helens&Knowsley Hospitals NHS Trust,31/03/2023,Conferences and Seminars,CHIEF EXECUTIVE'S OFFICE,PRODUCTIVE PARTNERS LTD,45620749,"36,000.00"
Department of Health,St. Helens&Knowsley Hospitals NHS Trust,28/02/2023,Continence Products,COMMUNITY CONTINENCE SERVICE,ESSITY UK LTD,45901286,"57,047.29"
Department of Health,St. Helens&Knowsley Hospitals NHS Trust,31/03/2023,Course Fees,CLINICAL PSYCHOLOGY,APT TRAINING & CONSULTANCY LTD,46060482,"28,368.00"
Department of Health,St. Helens&Knowsley Hospitals NHS Trust,31/03/2023,Course Fees,INTERNATIONAL RECRUITMENT,NORTHUMBRIA UNIVERSITY,46220790,"25,408.00"
Department of Health,St. Helens&Knowsley Hospitals NHS Trust,28/02/2023,Data Lines,MMDA PROGRAMME COSTS - SHARED SERVICES,VIRGIN MEDIA BUSINESS LTD,45844544,"30,763.09"
Department of Health,St. Helens&Knowsley Hospitals NHS Trust,31/03/2023,Data Lines,MMDA PROGRAMME COSTS - SHARED SERVICES,VIRGIN MEDIA BUSINESS LTD,46048624,"31,674.24"
Department of Health,St. Helens&Knowsley Hospitals NHS Trust,31/03/2023,Data Lines,MMDA PROGRAMME COSTS - SHARED SERVICES,VIRGIN MEDIA BUSINESS LTD,46191948,"34,800.00"
Department of Health,St. Helens&Knowsley Hospitals NHS Trust,31/03/2023,Drugs,DRUGS/M+S UNALLOCATED WH,PHOENIX HEALTHCARE DISTRIBUTION LTD,46026027,"1,384.44"
Department of Health,St. Helens&Knowsley Hospitals NHS Trust,31/03/2023,Drugs,DRUGS/M+S UNALLOCATED WH,PHOENIX HEALTHCARE DISTRIBUTION LTD,46026027,"6,935.16"
Department of Health,St. Helens&Knowsley Hospitals NHS Trust,31/03/2023,Drugs,DRUGS/M+S UNALLOCATED WH,AAH PHARMACEUTICALS LTD,46026035,1.95
Department of Health,St. Helens&Knowsley Hospitals NHS Trust,31/03/2023,Drugs,DRUGS/M+S UNALLOCATED WH,AAH PHARMACEUTICALS LTD,46026035,10.29
Department of Health,St. Helens&Knowsley Hospitals NHS Trust,28/02/2023,External Consultancy Fees,FINANCE DIRECTORATE HQ,WEIGHTMANS LLP,45464306,"84,883.75"
Department of Health,St. Helens&Knowsley Hospitals NHS Trust,28/02/2023,External Consultancy Fees,FINANCE DIRECTORATE HQ,WEIGHTMANS LLP,45464306,"16,976.75"
Department of Health,St. Helens&Knowsley Hospitals NHS Trust,28/02/2023,External Consultancy Fees,FINANCE DIRECTORATE HQ,KPMG LLP,45481931,"160,000.00"
Department of Health,St. Helens&Knowsley Hospitals NHS Trust,28/02/2023,External Consultancy Fees,FINANCE DIRECTORATE HQ,KPMG LLP,45481931,"86,250.00"
Department of Health,St. Helens&Knowsley Hospitals NHS Trust,28/02/2023,External Consultancy Fees,FINANCE DIRECTORATE HQ,KPMG LLP,45481931,"69,850.00"
Department of Health,St. Helens&Knowsley Hospitals NHS Trust,28/02/2023,External Consultancy Fees,FINANCE DIRECTORATE HQ,KPMG LLP,45481931,"8,250.00"
Department of Health,St. Helens&Knowsley Hospitals NHS Trust,28/02/2023,External Consultancy Fees,FINANCE DIRECTORATE HQ,KPMG LLP,45481931,"64,870.00"
Department of Health,St. Helens&Knowsley Hospitals NHS Trust,28/02/2023,External Consultancy Fees,REGIONAL CANCER TRANSFORMATION,AKESO & COMPANY LTD,45742748,"37,478.00"
Department of Health,St. Helens&Knowsley Hospitals NHS Trust,31/03/2023,External Consultancy Fees,FINANCE DIRECTORATE HQ,ADDLESHAW GODDARD LLP,45951235,"21,714.65"
Department of Health,St. Helens&Knowsley Hospitals NHS Trust,31/03/2023,External Consultancy Fees,FINANCE DIRECTORATE HQ,ADDLESHAW GODDARD LLP,45951235,"4,342.93"
Department of Health,St. Helens&Knowsley Hospitals NHS Trust,31/03/2023,F&F Additions,Balance Sheet,DALEN LTD,46279186,"11,102.00"
Department of Health,St. Helens&Knowsley Hospitals NHS Trust,31/03/2023,F&F Additions,Balance Sheet,DALEN LTD,46279186,"20,362.00"
Department of Health,St. Helens&Knowsley Hospitals NHS Trust,31/03/2023,F&F Additions,Balance Sheet,DALEN LTD,46279186,"6,292.80"
Department of Health,St. Helens&Knowsley Hospitals NHS Trust,28/02/2023,IGComp3PSoft - Additions,Balance Sheet,SYSTEM C HEALTHCARE LTD,45642699,"60,000.00"
Department of Health,St. Helens&Knowsley Hospitals NHS Trust,28/02/2023,IGComp3PSoft - Additions,Balance Sheet,SYSTEM C HEALTHCARE LTD,45642699,"100,000.00"
Department of Health,St. Helens&Knowsley Hospitals NHS Trust,28/02/2023,IGComp3PSoft - Additions,Balance Sheet,SYSTEM C HEALTHCARE LTD,45642699,"12,500.00"
Department of Health,St. Helens&Knowsley Hospitals NHS Trust,28/02/2023,IGComp3PSoft - Additions,Balance Sheet,SYSTEM C HEALTHCARE LTD,45642699,"25,800.00"
Department of Health,St. Helens&Knowsley Hospitals NHS Trust,28/02/2023,IGComp3PSoft - Additions,Balance Sheet,SYSTEM C HEALTHCARE LTD,45642699,"39,660.00"
Department of Health,St. Helens&Knowsley Hospitals NHS Trust,28/02/2023,IGComp3PSoft - Additions,Balance Sheet,SYSTEM C HEALTHCARE LTD,45642700,"30,000.00"
Department of Health,St. Helens&Knowsley Hospitals NHS Trust,28/02/2023,IGComp3PSoft - Additions,Balance Sheet,SYSTEM C HEALTHCARE LTD,45642700,"50,000.00"
Department of Health,St. Helens&Knowsley Hospitals NHS Trust,28/02/2023,IGComp3PSoft - Additions,Balance Sheet,SYSTEM C HEALTHCARE LTD,45642700,"16,000.00"
Department of Health,St. Helens&Knowsley Hospitals NHS Trust,28/02/2023,Independent Sector,OCCUPATIONAL HEALTH NURS,COHORT SOFTWARE LTD,45823660,"31,555.81"
Department of Health,St. Helens&Knowsley Hospitals NHS Trust,28/02/2023,Independent Sector,OCCUPATIONAL HEALTH NURS,COHORT SOFTWARE LTD,45823660,"6,311.15"
Department of Health,St. Helens&Knowsley Hospitals NHS Trust,31/03/2023,Independent Sector,RESERVES,FAIRFIELD INDEPENDENT HOSPITAL,46026908,"30,000.00"
Department of Health,St. Helens&Knowsley Hospitals NHS Trust,31/03/2023,Independent Sector,RESERVES,FAIRFIELD INDEPENDENT HOSPITAL,46026922,"27,414.00"
Department of Health,St. Helens&Knowsley Hospitals NHS Trust,31/03/2023,Independent Sector,RESERVES,FAIRFIELD INDEPENDENT HOSPITAL,46026926,"61,319.00"
Department of Health,St. Helens&Knowsley Hospitals NHS Trust,31/03/2023,Independent Sector,BROADOAK MANOR,HC ONE LTD,46130263,"510,000.00"
Department of Health,St. Helens&Knowsley Hospitals NHS Trust,28/02/2023,Interpreting services,A + E NURSING WHISTON,DA LANGUAGES LTD,45911762,"1,044.36"
Department of Health,St. Helens&Knowsley Hospitals NHS Trust,28/02/2023,Interpreting services,AUDIOLOGY,DA LANGUAGES LTD,45911762,228.36
Department of Health,St. Helens&Knowsley Hospitals NHS Trust,28/02/2023,Interpreting services,B + P DRESSINGS CLINIC,DA LANGUAGES LTD,45911762,782.58
Department of Health,St. Helens&Knowsley Hospitals NHS Trust,28/02/2023,Interpreting services,B + P MEDICAL STAFF,DA LANGUAGES LTD,45911762,"1,540.44"
Department of Health,St. Helens&Knowsley Hospitals NHS Trust,28/02/2023,Interpreting services,BEVAN COURT 1,DA LANGUAGES LTD,45911762,48.60
Department of Health,St. Helens&Knowsley Hospitals NHS Trust,28/02/2023,Interpreting services,CANCER CORE STAFF AND NON-PAY,DA LANGUAGES LTD,45911762,524.16
Department of Health,St. Helens&Knowsley Hospitals NHS Trust,28/02/2023,Interpreting services,CARDIO-RESPIRATORY (ECG),DA LANGUAGES LTD,45911762,257.04
Department of Health,St. Helens&Knowsley Hospitals NHS Trust,28/02/2023,Interpreting services,CARDIOLOGY SNR MEDICAL,DA LANGUAGES LTD,45911762,337.38
Department of Health,St. Helens&Knowsley Hospitals NHS Trust,28/02/2023,Interpreting services,CLINICAL PSYCHOLOGY,DA LANGUAGES LTD,45911762,16.20
Department of Health,St. Helens&Knowsley Hospitals NHS Trust,28/02/2023,Interpreting services,COMMUNITY MIDWIFERY,DA LANGUAGES LTD,45911762,819.60
Department of Health,St. Helens&Knowsley Hospitals NHS Trust,28/02/2023,Interpreting services,DELIVERY SUITE,DA LANGUAGES LTD,45911762,560.52
Department of Health,St. Helens&Knowsley Hospitals NHS Trust,28/02/2023,Interpreting services,DERMATOLOGY,DA LANGUAGES LTD,45911762,912.18
Department of Health,St. Helens&Knowsley Hospitals NHS Trust,28/02/2023,Interpreting services,DIABETES NURSING,DA LANGUAGES LTD,45911762,900.36
Department of Health,St. Helens&Knowsley Hospitals NHS Trust,28/02/2023,Interpreting services,DUFFY SUITE INTERMEDIATE CARE UNIT,DA LANGUAGES LTD,45911762,187.92
Department of Health,St. Helens&Knowsley Hospitals NHS Trust,28/02/2023,Interpreting services,ENT MEDICAL STAFF,DA LANGUAGES LTD,45911762,"1,716.90"
Department of Health,St. Helens&Knowsley Hospitals NHS Trust,28/02/2023,Interpreting services,GASTROLOGY SNR MEDICAL,DA LANGUAGES LTD,45911762,775.38
Department of Health,St. Helens&Knowsley Hospitals NHS Trust,28/02/2023,Interpreting services,GEN MED ENDOSCOPY H2,DA LANGUAGES LTD,45911762,835.14
Department of Health,St. Helens&Knowsley Hospitals NHS Trust,28/02/2023,Interpreting services,GENERAL SURGERY MEDICAL,DA LANGUAGES LTD,45911762,"1,760.46"
Department of Health,St. Helens&Knowsley Hospitals NHS Trust,28/02/2023,Interpreting services,GYNAE OUTPATIEN ST HELENS,DA LANGUAGES LTD,45911762,670.98
Department of Health,St. Helens&Knowsley Hospitals NHS Trust,28/02/2023,Interpreting services,GYNAECOLOGY OPD WHISTON,DA LANGUAGES LTD,45911762,"3,640.44"
Department of Health,St. Helens&Knowsley Hospitals NHS Trust,28/02/2023,Interpreting services,HAEMATOLOGY MEDICAL,DA LANGUAGES LTD,45911762,226.26
Department of Health,St. Helens&Knowsley Hospitals NHS Trust,28/02/2023,Interpreting services,LASER CLINICS,DA LANGUAGES LTD,45911762,68.58
Department of Health,St. Helens&Knowsley Hospitals NHS Trust,28/02/2023,Interpreting services,NEUROPHYSIOLOGY (EEG),DA LANGUAGES LTD,45911762,96.78
Department of Health,St. Helens&Knowsley Hospitals NHS Trust,28/02/2023,Interpreting services,NEUROSURGERY - MEDICAL STAFF,DA LANGUAGES LTD,45911762,69.12
Department of Health,St. Helens&Knowsley Hospitals NHS Trust,28/02/2023,Interpreting services,OBSTETRICS WARD 2E,DA LANGUAGES LTD,45911762,72.36
Department of Health,St. Helens&Knowsley Hospitals NHS Trust,28/02/2023,Interpreting services,OPHTH RENNIE EYE CLINIC,DA LANGUAGES LTD,45911762,16.20
Department of Health,St. Helens&Knowsley Hospitals NHS Trust,28/02/2023,Interpreting services,OPHTHALMOLOGY MEDICAL,DA LANGUAGES LTD,45911762,"1,803.36"
Department of Health,St. Helens&Knowsley Hospitals NHS Trust,28/02/2023,Interpreting services,ORTHODONTICS & ORAL & FACIAL SURGERY,DA LANGUAGES LTD,45911762,161.58
Department of Health,St. Helens&Knowsley Hospitals NHS Trust,28/02/2023,Interpreting services,ORTHOPAEDIC MEDICAL STAFF,DA LANGUAGES LTD,45911762,806.58
Department of Health,St. Helens&Knowsley Hospitals NHS Trust,28/02/2023,Interpreting services,ORTHOPTICS DEPARTMENT,DA LANGUAGES LTD,45911762,460.44
Department of Health,St. Helens&Knowsley Hospitals NHS Trust,28/02/2023,Interpreting services,OUTPATIENTS ST HELENS,DA LANGUAGES LTD,45911762,105.42
Department of Health,St. Helens&Knowsley Hospitals NHS Trust,28/02/2023,Interpreting services,OUTPATIENTS WHISTON,DA LANGUAGES LTD,45911762,175.56
Department of Health,St. Helens&Knowsley Hospitals NHS Trust,28/02/2023,Interpreting services,PAEDIATRIC MEDICAL STAFF,DA LANGUAGES LTD,45911762,833.34
Department of Health,St. Helens&Knowsley Hospitals NHS Trust,28/02/2023,Interpreting services,PRE OP SCG,DA LANGUAGES LTD,45911762,960.90
Department of Health,St. Helens&Knowsley Hospitals NHS Trust,28/02/2023,Interpreting services,PSDU AT ST HELENS,DA LANGUAGES LTD,45911762,195.66
Department of Health,St. Helens&Knowsley Hospitals NHS Trust,28/02/2023,Interpreting services,RADIOGRAPHY WHISTON,DA LANGUAGES LTD,45911762,"3,707.04"
Department of Health,St. Helens&Knowsley Hospitals NHS Trust,28/02/2023,Interpreting services,RHEUMATOLOGY NURSING OUTPATIENTS,DA LANGUAGES LTD,45911762,61.02
Department of Health,St. Helens&Knowsley Hospitals NHS Trust,28/02/2023,Interpreting services,RHEUMATOLOGY SNR MEDICAL,DA LANGUAGES LTD,45911762,462.54
Department of Health,St. Helens&Knowsley Hospitals NHS Trust,28/02/2023,Interpreting services,SANDERSON SUITE GENERAL SURGERY,DA LANGUAGES LTD,45911762,454.26
Department of Health,St. Helens&Knowsley Hospitals NHS Trust,28/02/2023,Interpreting services,SEXUAL HEALTH,DA LANGUAGES LTD,45911762,429.18
Department of Health,St. Helens&Knowsley Hospitals NHS Trust,28/02/2023,Interpreting services,ST HELENS UTC,DA LANGUAGES LTD,45911762,135.00
Department of Health,St. Helens&Knowsley Hospitals NHS Trust,28/02/2023,Interpreting services,THEATRES MEDICAL STAFF,DA LANGUAGES LTD,45911762,32.40
Department of Health,St. Helens&Knowsley Hospitals NHS Trust,28/02/2023,Interpreting services,THERAPY MANAGEMENT & ADMIN.,DA LANGUAGES LTD,45911762,"1,127.34"
Department of Health,St. Helens&Knowsley Hospitals NHS Trust,28/02/2023,Interpreting services,UROLOGY MEDICAL STAFF,DA LANGUAGES LTD,45911762,877.08
Department of Health,St. Helens&Knowsley Hospitals NHS Trust,28/02/2023,Interpreting services,VASCULAR SURGERY MEDICAL STAFF,DA LANGUAGES LTD,45911762,106.98
Department of Health,St. Helens&Knowsley Hospitals NHS Trust,28/02/2023,Interpreting services,WARD 1B ACUTE MEDICAL UNIT,DA LANGUAGES LTD,45911762,58.32
Department of Health,St. Helens&Knowsley Hospitals NHS Trust,28/02/2023,Interpreting services,WARD 2A HAEMATOLOGY,DA LANGUAGES LTD,45911762,86.88
Department of Health,St. Helens&Knowsley Hospitals NHS Trust,28/02/2023,Interpreting services,WARD 3A PLASTICS,DA LANGUAGES LTD,45911762,218.88
Department of Health,St. Helens&Knowsley Hospitals NHS Trust,28/02/2023,Interpreting services,WARD 3B ORTHOPAEDICS,DA LANGUAGES LTD,45911762,154.20
Department of Health,St. Helens&Knowsley Hospitals NHS Trust,28/02/2023,Interpreting services,WARD 3E GYNAECOLOGY,DA LANGUAGES LTD,45911762,410.52
Department of Health,St. Helens&Knowsley Hospitals NHS Trust,28/02/2023,Interpreting services,WARD 3F PAEDIATRICS,DA LANGUAGES LTD,45911762,16.20
Department of Health,St. Helens&Knowsley Hospitals NHS Trust,28/02/2023,Interpreting services,WARD 4B GENERAL SURGERY,DA LANGUAGES LTD,45911762,787.80
Department of Health,St. Helens&Knowsley Hospitals NHS Trust,28/02/2023,Interpreting services,WARD 4D BURNS,DA LANGUAGES LTD,45911762,25.92
Department of Health,St. Helens&Knowsley Hospitals NHS Trust,28/02/2023,Interpreting services,WARD 4F PAEDIATRICS,DA LANGUAGES LTD,45911762,102.12
Department of Health,St. Helens&Knowsley Hospitals NHS Trust,28/02/2023,Interpreting services,WOMENS OPD,DA LANGUAGES LTD,45911762,"1,888.38"
Department of Health,St. Helens&Knowsley Hospitals NHS Trust,28/02/2023,IT Additions,Balance Sheet,SOFTCAT PLC,45596505,"1,154.75"
Department of Health,St. Helens&Knowsley Hospitals NHS Trust,28/02/2023,IT Additions,Balance Sheet,SOFTCAT PLC,45596505,375.00
Department of Health,St. Helens&Knowsley Hospitals NHS Trust,28/02/2023,IT Additions,Balance Sheet,SOFTCAT PLC,45596505,"13,080.75"
Department of Health,St. Helens&Knowsley Hospitals NHS Trust,28/02/2023,IT Additions,Balance Sheet,SOFTCAT PLC,45596505,721.50
Department of Health,St. Helens&Knowsley Hospitals NHS Trust,28/02/2023,IT Additions,Balance Sheet,SOFTCAT PLC,45596505,"29,189.25"
Department of Health,St. Helens&Knowsley Hospitals NHS Trust,28/02/2023,IT Additions,Balance Sheet,SOFTCAT PLC,45596505,602.00
Department of Health,St. Helens&Knowsley Hospitals NHS Trust,28/02/2023,IT Additions,Balance Sheet,SOFTCAT PLC,45596505,"1,578.75"
Department of Health,St. Helens&Knowsley Hospitals NHS Trust,28/02/2023,IT Additions,Balance Sheet,SOFTCAT PLC,45596505,"9,340.40"
Department of Health,St. Helens&Knowsley Hospitals NHS Trust,28/02/2023,IT Additions,Balance Sheet,SYSTEM C HEALTHCARE LTD,45642699,"50,000.00"
Department of Health,St. Helens&Knowsley Hospitals NHS Trust,28/02/2023,IT Additions,Balance Sheet,SYSTEM C HEALTHCARE LTD,45642699,"10,000.00"
Department of Health,St. Helens&Knowsley Hospitals NHS Trust,31/03/2023,IT Additions,Balance Sheet,CDW LTD,46335397,"33,258.21"
Department of Health,St. Helens&Knowsley Hospitals NHS Trust,28/02/2023,Lab Equip Maint Contracts,CHEMICAL PATHOLOGY DEPT,SIEMENS HEALTHCARE DIAGNOSTICS LTD,45201306,"-33,869.81"
Department of Health,St. Helens&Knowsley Hospitals NHS Trust,28/02/2023,Lab Equip Maint Contracts,CHEMICAL PATHOLOGY DEPT,SIEMENS HEALTHCARE DIAGNOSTICS LTD,45443658,"-29,260.82"
Department of Health,St. Helens&Knowsley Hospitals NHS Trust,31/03/2023,Lab Equip Maint Contracts,HISTOPATHOLOGY/MORTUARY,SAKURA FINETEK UK LTD,46191403,"23,992.04"
Department of Health,St. Helens&Knowsley Hospitals NHS Trust,31/03/2023,Lab Equip Maint Contracts,HISTOPATHOLOGY/MORTUARY,SAKURA FINETEK UK LTD,46265960,"21,859.00"
Department of Health,St. Helens&Knowsley Hospitals NHS Trust,28/02/2023,Laboratory Chemicals,CHEMICAL PATHOLOGY DEPT,SIEMENS HEALTHCARE DIAGNOSTICS LTD,45201306,"33,869.81"
Department of Health,St. Helens&Knowsley Hospitals NHS Trust,28/02/2023,Laboratory Chemicals,CHEMICAL PATHOLOGY DEPT,SIEMENS HEALTHCARE DIAGNOSTICS LTD,45201306,"169,349.03"
Department of Health,St. Helens&Knowsley Hospitals NHS Trust,28/02/2023,Laboratory Chemicals,CHEMICAL PATHOLOGY DEPT,SIEMENS HEALTHCARE DIAGNOSTICS LTD,45443658,"29,260.82"
Department of Health,St. Helens&Knowsley Hospitals NHS Trust,28/02/2023,Laboratory Chemicals,CHEMICAL PATHOLOGY DEPT,SIEMENS HEALTHCARE DIAGNOSTICS LTD,45443658,"146,304.09"
Department of Health,St. Helens&Knowsley Hospitals NHS Trust,28/02/2023,Laboratory Chemicals,HAEM + BLOOD TRANSFUSION,SYSMEX UK LTD,45780194,"143,127.40"
Department of Health,St. Helens&Knowsley Hospitals NHS Trust,28/02/2023,Laboratory Chemicals,HAEM + BLOOD TRANSFUSION,SYSMEX UK LTD,45780194,"43,740.10"
Department of Health,St. Helens&Knowsley Hospitals NHS Trust,28/02/2023,Laboratory Chemicals,HAEM + BLOOD TRANSFUSION,SYSMEX UK LTD,45780194,"37,373.52"
Department of Health,St. Helens&Knowsley Hospitals NHS Trust,31/03/2023,Laboratory Chemicals,HISTOPATHOLOGY/MORTUARY,ROCHE DIAGNOSTICS LTD,45002133,"331,251.75"
Department of Health,St. Helens&Knowsley Hospitals NHS Trust,31/03/2023,Laboratory Chemicals,HISTOPATHOLOGY/MORTUARY,ROCHE DIAGNOSTICS LTD,45293981,"110,417.25"
Department of Health,St. Helens&Knowsley Hospitals NHS Trust,31/03/2023,Laboratory Chemicals,MICROBIOLOGY DEPT,CHRYSTAL CONSULTING LTD,45403538,"56,492.44"
Department of Health,St. Helens&Knowsley Hospitals NHS Trust,31/03/2023,Laboratory Chemicals,MICROBIOLOGY DEPT,CHRYSTAL CONSULTING LTD,45403538,"11,298.49"
Department of Health,St. Helens&Knowsley Hospitals NHS Trust,31/03/2023,Laboratory Chemicals,MICROBIOLOGY DEPT,CHRYSTAL CONSULTING LTD,45403539,"427,767.57"
Department of Health,St. Helens&Knowsley Hospitals NHS Trust,31/03/2023,Laboratory Chemicals,MICROBIOLOGY DEPT,CHRYSTAL CONSULTING LTD,45403539,"85,553.51"
Department of Health,St. Helens&Knowsley Hospitals NHS Trust,31/03/2023,Laboratory Chemicals,MICROBIOLOGY DEPT,CHRYSTAL CONSULTING LTD,45403947,"77,031.33"
Department of Health,St. Helens&Knowsley Hospitals NHS Trust,31/03/2023,Laboratory Chemicals,MICROBIOLOGY DEPT,CHRYSTAL CONSULTING LTD,45403947,"15,406.27"
Department of Health,St. Helens&Knowsley Hospitals NHS Trust,31/03/2023,Laboratory Chemicals,MICROBIOLOGY DEPT,CHRYSTAL CONSULTING LTD,45404651,"522,659.27"
Department of Health,St. Helens&Knowsley Hospitals NHS Trust,31/03/2023,Laboratory Chemicals,HISTOPATHOLOGY/MORTUARY,ROCHE DIAGNOSTICS LTD,46248769,"16,620.44"
Department of Health,St. Helens&Knowsley Hospitals NHS Trust,31/03/2023,Laboratory Equipment,MICROBIOLOGY DEPT,CHRYSTAL CONSULTING LTD,45403947,"-15,406.27"
Department of Health,St. Helens&Knowsley Hospitals NHS Trust,31/03/2023,Laboratory Reagents,MICROBIOLOGY DEPT,UK HEALTH SECURITY AGENCY,46354774,"67,569.68"
Department of Health,St. Helens&Knowsley Hospitals NHS Trust,31/03/2023,Lease Rents,PFI DESIGN + CONSTRUCTION,MAPP PROPERTY MANAGEMENT LTD,46128486,"80,736.95"
Department of Health,St. Helens&Knowsley Hospitals NHS Trust,28/02/2023,Legal / Prof Fees,FINANCE DIRECTORATE HQ,WEIGHTMANS LLP,45464313,"21,039.03"
Department of Health,St. Helens&Knowsley Hospitals NHS Trust,31/03/2023,Legal / Prof Fees,LEGAL SERVICES,HILL DICKINSON LLP,46086818,"91,608.60"
Department of Health,St. Helens&Knowsley Hospitals NHS Trust,28/02/2023,Med & Surg Equip Disp,GEN MED ENDOSCOPY H2,OLYMPUS KEYMED,45517181,"198,877.75"
Department of Health,St. Helens&Knowsley Hospitals NHS Trust,28/02/2023,Med & Surg Equip Disp,GEN MED ENDOSCOPY H2,BOSTON SCIENTIFIC LTD,45677728,"21,483.59"
Department of Health,St. Helens&Knowsley Hospitals NHS Trust,28/02/2023,Med & Surg Equip Disp,GEN MED ENDOSCOPY H2,BOSTON SCIENTIFIC LTD,45677728,"4,296.72"
Department of Health,St. Helens&Knowsley Hospitals NHS Trust,31/03/2023,Med & Surg Equip Disp,GEN MED ENDOSCOPY H2,BOSTON SCIENTIFIC LTD,46054667,"23,397.04"
Department of Health,St. Helens&Knowsley Hospitals NHS Trust,31/03/2023,Med & Surg Equip Disp,GEN MED ENDOSCOPY H2,BOSTON SCIENTIFIC LTD,46054667,"4,679.40"
Department of Health,St. Helens&Knowsley Hospitals NHS Trust,28/02/2023,Med & Surg Equip General,FINANCE DIRECTORATE HQ,B BRAUN MEDICAL LTD,45714636,"250,000.00"
Department of Health,St. Helens&Knowsley Hospitals NHS Trust,28/02/2023,Med & Surg Equip General,FINANCE DIRECTORATE HQ,B BRAUN MEDICAL LTD,45714636,"50,000.00"
Department of Health,St. Helens&Knowsley Hospitals NHS Trust,31/03/2023,Med & Surg Equip General,THEATRES BURNS + PLASTICS,AAH PHARMACEUTICALS LTD,46026035,4.12
Department of Health,St. Helens&Knowsley Hospitals NHS Trust,31/03/2023,Med & Surg Equip General,THEATRES BURNS + PLASTICS,AAH PHARMACEUTICALS LTD,46026035,21.75
Department of Health,St. Helens&Knowsley Hospitals NHS Trust,31/03/2023,Med & Surg Equip General,THEATRES MAIN ST HELEN'S,AAH PHARMACEUTICALS LTD,46026035,86.51
Department of Health,St. Helens&Knowsley Hospitals NHS Trust,31/03/2023,Med & Surg Equip General,THEATRES MAIN ST HELEN'S,AAH PHARMACEUTICALS LTD,46026035,456.75
Department of Health,St. Helens&Knowsley Hospitals NHS Trust,31/03/2023,Med & Surg Equip General,THEATRES BURNS + PLASTICS,AAH PHARMACEUTICALS LTD,46265502,129.08
Department of Health,St. Helens&Knowsley Hospitals NHS Trust,31/03/2023,Med & Surg Equip General,THEATRES MAIN ST HELEN'S,AAH PHARMACEUTICALS LTD,46265502,180.71
Department of Health,St. Helens&Knowsley Hospitals NHS Trust,28/02/2023,Med & Surg Equip Hire,WHISTON EQUIPMENT POOL,MEDSTROM LTD,45780712,"64,949.75"
Department of Health,St. Helens&Knowsley Hospitals NHS Trust,28/02/2023,Med & Surg Equip Hire,WHISTON EQUIPMENT POOL,MEDSTROM LTD,45780712,"12,989.95"
Department of Health,St. Helens&Knowsley Hospitals NHS Trust,31/03/2023,Med & Surg Equip Hire,WHISTON EQUIPMENT POOL,MEDSTROM LTD,46047518,"55,726.15"
Department of Health,St. Helens&Knowsley Hospitals NHS Trust,31/03/2023,Med & Surg Equip Hire,WHISTON EQUIPMENT POOL,MEDSTROM LTD,46047518,"11,145.23"
Department of Health,St. Helens&Knowsley Hospitals NHS Trust,31/03/2023,Med & Surg Equip Repair,WHISTON EQUIPMENT POOL,DRIVE DEVILBISS SIDHIL LTD,45648707,"24,804.00"
Department of Health,St. Helens&Knowsley Hospitals NHS Trust,31/03/2023,Med & Surg Equip Repair,WHISTON EQUIPMENT POOL,DRIVE DEVILBISS SIDHIL LTD,45648707,"4,960.80"
Department of Health,St. Helens&Knowsley Hospitals NHS Trust,31/03/2023,Med & Surg Equip Repair,WHISTON EQUIPMENT POOL,DRIVE DEVILBISS SIDHIL LTD,45648708,"15,729.00"
Department of Health,St. Helens&Knowsley Hospitals NHS Trust,31/03/2023,Med & Surg Equip Repair,WHISTON EQUIPMENT POOL,DRIVE DEVILBISS SIDHIL LTD,45648708,"9,900.00"
Department of Health,St. Helens&Knowsley Hospitals NHS Trust,31/03/2023,Med & Surg Maint Contract,WHISTON EQUIPMENT POOL,DRIVE DEVILBISS SIDHIL LTD,45648708,"1,819.50"
Department of Health,St. Helens&Knowsley Hospitals NHS Trust,31/03/2023,Med & Surg Maint Contract,COLD DECONTAMINATION WHISTON,IM MED LTD,46144798,"35,547.00"
Department of Health,St. Helens&Knowsley Hospitals NHS Trust,31/03/2023,Med & Surg Maint Contract,COLD DECONTAMINATION WHISTON,IM MED LTD,46169050,"30,590.38"
Department of Health,St. Helens&Knowsley Hospitals NHS Trust,31/03/2023,Med & Surg Maint Contract,COLD DECONTAMINATION WHISTON,IM MED LTD,46233369,"36,557.00"
Department of Health,St. Helens&Knowsley Hospitals NHS Trust,28/02/2023,Med Equip Additions,Balance Sheet,GENERAL MEDICAL LTD,45568400,766.70
Department of Health,St. Helens&Knowsley Hospitals NHS Trust,28/02/2023,Med Equip Additions,Balance Sheet,GENERAL MEDICAL LTD,45568400,766.70
Department of Health,St. Helens&Knowsley Hospitals NHS Trust,28/02/2023,Med Equip Additions,Balance Sheet,GENERAL MEDICAL LTD,45568400,734.50
Department of Health,St. Helens&Knowsley Hospitals NHS Trust,28/02/2023,Med Equip Additions,Balance Sheet,GENERAL MEDICAL LTD,45568400,"36,876.50"
Department of Health,St. Helens&Knowsley Hospitals NHS Trust,28/02/2023,Med Equip Additions,Balance Sheet,GENERAL MEDICAL LTD,45568400,"7,828.88"
Department of Health,St. Helens&Knowsley Hospitals NHS Trust,28/02/2023,Med Equip Additions,Balance Sheet,NJ DEVICES LTD TRADING AS OCEAN MED,45568473,"29,990.00"
Department of Health,St. Helens&Knowsley Hospitals NHS Trust,28/02/2023,Med Equip Additions,Balance Sheet,NJ DEVICES LTD TRADING AS OCEAN MED,45568473,"5,998.00"
Department of Health,St. Helens&Knowsley Hospitals NHS Trust,31/03/2023,Med Equip Additions,Balance Sheet,ATHRODAX HEALTHCARE INTERNATIONAL LTD,45978757,"28,000.00"
Department of Health,St. Helens&Knowsley Hospitals NHS Trust,31/03/2023,Med Equip Additions,Balance Sheet,ATHRODAX HEALTHCARE INTERNATIONAL LTD,45978757,"29,000.00"
Department of Health,St. Helens&Knowsley Hospitals NHS Trust,31/03/2023,Med Equip Additions,Balance Sheet,ATHRODAX HEALTHCARE INTERNATIONAL LTD,45978757,"2,190.00"
Department of Health,St. Helens&Knowsley Hospitals NHS Trust,31/03/2023,Med Equip Additions,Balance Sheet,ATHRODAX HEALTHCARE INTERNATIONAL LTD,45978757,"11,838.00"
Department of Health,St. Helens&Knowsley Hospitals NHS Trust,31/03/2023,Med Equip Additions,Balance Sheet,SUPPLY CHAIN COORDINATION LIMITED,46130251,"166,500.00"
Department of Health,St. Helens&Knowsley Hospitals NHS Trust,31/03/2023,Med Equip Additions,Balance Sheet,SUPPLY CHAIN COORDINATION LIMITED,46130251,"33,300.00"
Department of Health,St. Helens&Knowsley Hospitals NHS Trust,31/03/2023,Med Equip Additions,Balance Sheet,KARL STORZ ENDOSCOPY UK LTD,46130259,"104,338.38"
Department of Health,St. Helens&Knowsley Hospitals NHS Trust,31/03/2023,Med Equip Additions,Balance Sheet,DRAEGER MEDICAL UK LTD,46167079,"47,480.05"
Department of Health,St. Helens&Knowsley Hospitals NHS Trust,31/03/2023,Med Equip Additions,Balance Sheet,SUPPLY CHAIN COORDINATION LIMITED,46175002,"160,696.12"
Department of Health,St. Helens&Knowsley Hospitals NHS Trust,31/03/2023,Med Equip Additions,Balance Sheet,SUPPLY CHAIN COORDINATION LIMITED,46175002,516.24
Department of Health,St. Helens&Knowsley Hospitals NHS Trust,31/03/2023,Med Equip Additions,Balance Sheet,SUPPLY CHAIN COORDINATION LIMITED,46175002,716.50
Department of Health,St. Helens&Knowsley Hospitals NHS Trust,31/03/2023,Med Equip Additions,Balance Sheet,SUPPLY CHAIN COORDINATION LIMITED,46175002,"230,757.12"
Department of Health,St. Helens&Knowsley Hospitals NHS Trust,31/03/2023,Med Equip Additions,Balance Sheet,VERTEC SCIENTIFIC LTD,46194782,"98,080.00"
Department of Health,St. Helens&Knowsley Hospitals NHS Trust,31/03/2023,Med Equip Additions,Balance Sheet,VERTEC SCIENTIFIC LTD,46194782,"7,679.00"
Department of Health,St. Helens&Knowsley Hospitals NHS Trust,31/03/2023,Med Equip Additions,Balance Sheet,VERTEC SCIENTIFIC LTD,46194782,"8,800.00"
Department of Health,St. Helens&Knowsley Hospitals NHS Trust,31/03/2023,Med Equip Additions,Balance Sheet,VERTEC SCIENTIFIC LTD,46194782,"22,911.80"
Department of Health,St. Helens&Knowsley Hospitals NHS Trust,31/03/2023,Med Equip Additions,Balance Sheet,KARL STORZ ENDOSCOPY UK LTD,46233440,"100,897.55"
Department of Health,St. Helens&Knowsley Hospitals NHS Trust,31/03/2023,Med Equip Additions,Balance Sheet,KARL STORZ ENDOSCOPY UK LTD,46233440,"16,016.98"
Department of Health,St. Helens&Knowsley Hospitals NHS Trust,31/03/2023,Med Equip Additions,Balance Sheet,SUPPLY CHAIN COORDINATION LIMITED,46322734,"52,916.63"
Department of Health,St. Helens&Knowsley Hospitals NHS Trust,31/03/2023,Med Equip Additions,Balance Sheet,OPTIMA MEDICAL LTD,46365549,"25,375.00"
Department of Health,St. Helens&Knowsley Hospitals NHS Trust,31/03/2023,Med Equip Additions,Balance Sheet,OPTIMA MEDICAL LTD,46365549,"5,075.00"
Department of Health,St. Helens&Knowsley Hospitals NHS Trust,31/03/2023,Med Equip Additions,Balance Sheet,BK MEDICAL UK LTD,46383206,"70,052.00"
Department of Health,St. Helens&Knowsley Hospitals NHS Trust,31/03/2023,Med Equip Additions,Balance Sheet,BK MEDICAL UK LTD,46383206,"14,010.40"
Department of Health,St. Helens&Knowsley Hospitals NHS Trust,31/03/2023,Minor Works,MAINT OPERATIONS WHISTON,GSB SIGNS LTD,46249476,"32,938.33"
Department of Health,St. Helens&Knowsley Hospitals NHS Trust,28/02/2023,Miscellaneous Expenditure,HSDU WHISTON,SYNERGY HEALTH (UK) LTD,45616155,"192,868.03"
Department of Health,St. Helens&Knowsley Hospitals NHS Trust,28/02/2023,Miscellaneous Expenditure,PFI ENABLING WORKS,NEW HOSPITALS (ST HELENS & KNOWSLEY) LTD,45714286,"1,012,854.12"
Department of Health,St. Helens&Knowsley Hospitals NHS Trust,28/02/2023,Miscellaneous Expenditure,PFI ENABLING WORKS,NEW HOSPITALS (ST HELENS & KNOWSLEY) LTD,45714286,"202,569.99"
Department of Health,St. Helens&Knowsley Hospitals NHS Trust,28/02/2023,Miscellaneous Expenditure,BEVAN COURT FM,NEW HOSPITALS (ST HELENS & KNOWSLEY) LTD,45901401,"93,545.72"
Department of Health,St. Helens&Knowsley Hospitals NHS Trust,31/03/2023,Miscellaneous Expenditure,PFI ENABLING WORKS,NEW HOSPITALS (ST HELENS & KNOWSLEY) LTD,46060657,"113,233.10"
Department of Health,St. Helens&Knowsley Hospitals NHS Trust,31/03/2023,Miscellaneous Expenditure,PFI ENABLING WORKS,NEW HOSPITALS (ST HELENS & KNOWSLEY) LTD,46089059,"998,589.98"
Department of Health,St. Helens&Knowsley Hospitals NHS Trust,31/03/2023,Miscellaneous Expenditure,PFI ENABLING WORKS,NEW HOSPITALS (ST HELENS & KNOWSLEY) LTD,46089059,"199,718.00"
Department of Health,St. Helens&Knowsley Hospitals NHS Trust,31/03/2023,Miscellaneous Expenditure,BEVAN COURT FM,NEW HOSPITALS (ST HELENS & KNOWSLEY) LTD,46128477,"93,545.72"
Department of Health,St. Helens&Knowsley Hospitals NHS Trust,31/03/2023,Mobile Phones,A + E MEDICAL STAFF WH,VODAFONE LTD,46109568,12.00
Department of Health,St. Helens&Knowsley Hospitals NHS Trust,31/03/2023,Mobile Phones,A + E MEDICAL STAFF WH,VODAFONE LTD,46109568,60.00
Department of Health,St. Helens&Knowsley Hospitals NHS Trust,31/03/2023,Mobile Phones,A + E NURSING WHISTON,VODAFONE LTD,46109568,6.24
Department of Health,St. Helens&Knowsley Hospitals NHS Trust,31/03/2023,Mobile Phones,A + E NURSING WHISTON,VODAFONE LTD,46109568,31.22
Department of Health,St. Helens&Knowsley Hospitals NHS Trust,31/03/2023,Mobile Phones,ACUTE KIDNEY INJURY SERVICE,VODAFONE LTD,46109568,18.06
Department of Health,St. Helens&Knowsley Hospitals NHS Trust,31/03/2023,Mobile Phones,ACUTE KIDNEY INJURY SERVICE,VODAFONE LTD,46109568,90.30
Department of Health,St. Helens&Knowsley Hospitals NHS Trust,31/03/2023,Mobile Phones,ADMINISTRATION SERVICE CO-ORDINATOR,VODAFONE LTD,46109568,6.00
Department of Health,St. Helens&Knowsley Hospitals NHS Trust,31/03/2023,Mobile Phones,ADMINISTRATION SERVICE CO-ORDINATOR,VODAFONE LTD,46109568,30.00
Department of Health,St. Helens&Knowsley Hospitals NHS Trust,31/03/2023,Mobile Phones,ADMINISTRATIVE SUPPORT,VODAFONE LTD,46109568,3.03
Department of Health,St. Helens&Knowsley Hospitals NHS Trust,31/03/2023,Mobile Phones,ADMINISTRATIVE SUPPORT,VODAFONE LTD,46109568,15.15
Department of Health,St. Helens&Knowsley Hospitals NHS Trust,31/03/2023,Mobile Phones,AMU NURSE SPECIALISTS,VODAFONE LTD,46109568,36.00
Department of Health,St. Helens&Knowsley Hospitals NHS Trust,31/03/2023,Mobile Phones,AMU NURSE SPECIALISTS,VODAFONE LTD,46109568,180.00
Department of Health,St. Helens&Knowsley Hospitals NHS Trust,31/03/2023,Mobile Phones,ANTI-COAGULATION NURSING TEAM,VODAFONE LTD,46109568,6.00
Department of Health,St. Helens&Knowsley Hospitals NHS Trust,31/03/2023,Mobile Phones,ANTI-COAGULATION NURSING TEAM,VODAFONE LTD,46109568,30.00
Department of Health,St. Helens&Knowsley Hospitals NHS Trust,31/03/2023,Mobile Phones,B + P MEDICAL PHOTOGRAPHY,VODAFONE LTD,46109568,12.00
Department of Health,St. Helens&Knowsley Hospitals NHS Trust,31/03/2023,Mobile Phones,B + P MEDICAL PHOTOGRAPHY,VODAFONE LTD,46109568,60.00
Department of Health,St. Helens&Knowsley Hospitals NHS Trust,31/03/2023,Mobile Phones,B + P MEDICAL STAFF,VODAFONE LTD,46109568,38.84
Department of Health,St. Helens&Knowsley Hospitals NHS Trust,31/03/2023,Mobile Phones,B + P MEDICAL STAFF,VODAFONE LTD,46109568,194.21
Department of Health,St. Helens&Knowsley Hospitals NHS Trust,31/03/2023,Mobile Phones,BD INCOME-NON PARTNERS,VODAFONE LTD,46109568,6.00
Department of Health,St. Helens&Knowsley Hospitals NHS Trust,31/03/2023,Mobile Phones,BD INCOME-NON PARTNERS,VODAFONE LTD,46109568,30.00
Department of Health,St. Helens&Knowsley Hospitals NHS Trust,31/03/2023,Mobile Phones,BED MANAGEMENT,VODAFONE LTD,46109568,16.71
Department of Health,St. Helens&Knowsley Hospitals NHS Trust,31/03/2023,Mobile Phones,BED MANAGEMENT,VODAFONE LTD,46109568,83.54
Department of Health,St. Helens&Knowsley Hospitals NHS Trust,31/03/2023,Mobile Phones,BEVAN COURT 1,VODAFONE LTD,46109568,19.58
Department of Health,St. Helens&Knowsley Hospitals NHS Trust,31/03/2023,Mobile Phones,BEVAN COURT 1,VODAFONE LTD,46109568,97.92
Department of Health,St. Helens&Knowsley Hospitals NHS Trust,31/03/2023,Mobile Phones,BEVAN COURT 2,VODAFONE LTD,46109568,12.00
Department of Health,St. Helens&Knowsley Hospitals NHS Trust,31/03/2023,Mobile Phones,BEVAN COURT 2,VODAFONE LTD,46109568,60.00
Department of Health,St. Helens&Knowsley Hospitals NHS Trust,31/03/2023,Mobile Phones,BREAST SURGERY,VODAFONE LTD,46109568,1.50
Department of Health,St. Helens&Knowsley Hospitals NHS Trust,31/03/2023,Mobile Phones,BREAST SURGERY,VODAFONE LTD,46109568,7.50
Department of Health,St. Helens&Knowsley Hospitals NHS Trust,31/03/2023,Mobile Phones,BUSINESS RELATIONSHIPS,VODAFONE LTD,46109568,6.00
Department of Health,St. Helens&Knowsley Hospitals NHS Trust,31/03/2023,Mobile Phones,BUSINESS RELATIONSHIPS,VODAFONE LTD,46109568,30.00
Department of Health,St. Helens&Knowsley Hospitals NHS Trust,31/03/2023,Mobile Phones,C.O.P.D SERVICE (KPCT),VODAFONE LTD,46109568,1.50
Department of Health,St. Helens&Knowsley Hospitals NHS Trust,31/03/2023,Mobile Phones,C.O.P.D SERVICE (KPCT),VODAFONE LTD,46109568,7.50
Department of Health,St. Helens&Knowsley Hospitals NHS Trust,31/03/2023,Mobile Phones,C.O.P.D SERVICE (STHPCT),VODAFONE LTD,46109568,169.69
Department of Health,St. Helens&Knowsley Hospitals NHS Trust,31/03/2023,Mobile Phones,C.O.P.D SERVICE (STHPCT),VODAFONE LTD,46109568,848.47
Department of Health,St. Helens&Knowsley Hospitals NHS Trust,31/03/2023,Mobile Phones,CANCER CORE STAFF AND NON-PAY,VODAFONE LTD,46109568,12.00
Department of Health,St. Helens&Knowsley Hospitals NHS Trust,31/03/2023,Mobile Phones,CANCER CORE STAFF AND NON-PAY,VODAFONE LTD,46109568,60.00
Department of Health,St. Helens&Knowsley Hospitals NHS Trust,31/03/2023,Mobile Phones,CANCER NURSE SPEC MCG,VODAFONE LTD,46109568,12.00
Department of Health,St. Helens&Knowsley Hospitals NHS Trust,31/03/2023,Mobile Phones,CANCER NURSE SPEC MCG,VODAFONE LTD,46109568,60.00
Department of Health,St. Helens&Knowsley Hospitals NHS Trust,31/03/2023,Mobile Phones,CANCER NURSE SPEC SCG,VODAFONE LTD,46109568,15.00
Department of Health,St. Helens&Knowsley Hospitals NHS Trust,31/03/2023,Mobile Phones,CANCER NURSE SPEC SCG,VODAFONE LTD,46109568,75.00
Department of Health,St. Helens&Knowsley Hospitals NHS Trust,31/03/2023,Mobile Phones,CANCER SERVICES,VODAFONE LTD,46109568,6.00
Department of Health,St. Helens&Knowsley Hospitals NHS Trust,31/03/2023,Mobile Phones,CANCER SERVICES,VODAFONE LTD,46109568,30.00
Department of Health,St. Helens&Knowsley Hospitals NHS Trust,31/03/2023,Mobile Phones,CANCER SERVICES - ADMIN,VODAFONE LTD,46109568,6.00
Department of Health,St. Helens&Knowsley Hospitals NHS Trust,31/03/2023,Mobile Phones,CANCER SERVICES - ADMIN,VODAFONE LTD,46109568,30.00
Department of Health,St. Helens&Knowsley Hospitals NHS Trust,31/03/2023,Mobile Phones,CANCER SVS CO-ORDINATION,VODAFONE LTD,46109568,44.00
Department of Health,St. Helens&Knowsley Hospitals NHS Trust,31/03/2023,Mobile Phones,CANCER SVS CO-ORDINATION,VODAFONE LTD,46109568,220.00
Department of Health,St. Helens&Knowsley Hospitals NHS Trust,31/03/2023,Mobile Phones,CARDIO-RESPIRATORY (ECG),VODAFONE LTD,46109568,32.66
Department of Health,St. Helens&Knowsley Hospitals NHS Trust,31/03/2023,Mobile Phones,CARDIO-RESPIRATORY (ECG),VODAFONE LTD,46109568,163.31
Department of Health,St. Helens&Knowsley Hospitals NHS Trust,31/03/2023,Mobile Phones,CARDIOLOGY NURSING,VODAFONE LTD,46109568,23.40
Department of Health,St. Helens&Knowsley Hospitals NHS Trust,31/03/2023,Mobile Phones,CARDIOLOGY NURSING,VODAFONE LTD,46109568,117.00
Department of Health,St. Helens&Knowsley Hospitals NHS Trust,31/03/2023,Mobile Phones,CARDIOLOGY SNR MEDICAL,VODAFONE LTD,46109568,19.50
Department of Health,St. Helens&Knowsley Hospitals NHS Trust,31/03/2023,Mobile Phones,CARDIOLOGY SNR MEDICAL,VODAFONE LTD,46109568,97.50
Department of Health,St. Helens&Knowsley Hospitals NHS Trust,31/03/2023,Mobile Phones,CARE OF ELDERLY MED STAFF,VODAFONE LTD,46109568,148.32
Department of Health,St. Helens&Knowsley Hospitals NHS Trust,31/03/2023,Mobile Phones,CARE OF ELDERLY MED STAFF,VODAFONE LTD,46109568,741.62
Department of Health,St. Helens&Knowsley Hospitals NHS Trust,31/03/2023,Mobile Phones,CHAIRMAN'S OFFICE,VODAFONE LTD,46109568,49.25
Department of Health,St. Helens&Knowsley Hospitals NHS Trust,31/03/2023,Mobile Phones,CHAIRMAN'S OFFICE,VODAFONE LTD,46109568,246.25
Department of Health,St. Helens&Knowsley Hospitals NHS Trust,31/03/2023,Mobile Phones,CHIEF EXECUTIVE'S OFFICE,VODAFONE LTD,46109568,105.59
Department of Health,St. Helens&Knowsley Hospitals NHS Trust,31/03/2023,Mobile Phones,CHIEF EXECUTIVE'S OFFICE,VODAFONE LTD,46109568,527.96
Department of Health,St. Helens&Knowsley Hospitals NHS Trust,31/03/2023,Mobile Phones,CHILDRENS NURSING,VODAFONE LTD,46109568,208.46
Department of Health,St. Helens&Knowsley Hospitals NHS Trust,31/03/2023,Mobile Phones,CHILDRENS NURSING,VODAFONE LTD,46109568,"1,042.28"
Department of Health,St. Helens&Knowsley Hospitals NHS Trust,31/03/2023,Mobile Phones,CLINICAL AUDIT,VODAFONE LTD,46109568,6.00
Department of Health,St. Helens&Knowsley Hospitals NHS Trust,31/03/2023,Mobile Phones,CLINICAL AUDIT,VODAFONE LTD,46109568,30.00
Department of Health,St. Helens&Knowsley Hospitals NHS Trust,31/03/2023,Mobile Phones,CLINICAL GOVERNANCE TEAM,VODAFONE LTD,46109568,17.73
Department of Health,St. Helens&Knowsley Hospitals NHS Trust,31/03/2023,Mobile Phones,CLINICAL GOVERNANCE TEAM,VODAFONE LTD,46109568,88.63
Department of Health,St. Helens&Knowsley Hospitals NHS Trust,31/03/2023,Mobile Phones,CLINICAL PSYCHOLOGY,VODAFONE LTD,46109568,47.50
Department of Health,St. Helens&Knowsley Hospitals NHS Trust,31/03/2023,Mobile Phones,CLINICAL PSYCHOLOGY,VODAFONE LTD,46109568,237.50
Department of Health,St. Helens&Knowsley Hospitals NHS Trust,31/03/2023,Mobile Phones,CLINICAL SUPPORT DIV MGMT,VODAFONE LTD,46109568,14.00
Department of Health,St. Helens&Knowsley Hospitals NHS Trust,31/03/2023,Mobile Phones,CLINICAL SUPPORT DIV MGMT,VODAFONE LTD,46109568,70.00
Department of Health,St. Helens&Knowsley Hospitals NHS Trust,31/03/2023,Mobile Phones,COE NURSE SPECIALISTS,VODAFONE LTD,46109568,35.50
Department of Health,St. Helens&Knowsley Hospitals NHS Trust,31/03/2023,Mobile Phones,COE NURSE SPECIALISTS,VODAFONE LTD,46109568,177.50
Department of Health,St. Helens&Knowsley Hospitals NHS Trust,31/03/2023,Mobile Phones,COLD DECONTAMINATION,VODAFONE LTD,46109568,6.00
Department of Health,St. Helens&Knowsley Hospitals NHS Trust,31/03/2023,Mobile Phones,COLD DECONTAMINATION,VODAFONE LTD,46109568,30.00
Department of Health,St. Helens&Knowsley Hospitals NHS Trust,31/03/2023,Mobile Phones,COLD DECONTAMINATION WHISTON,VODAFONE LTD,46109568,7.50
Department of Health,St. Helens&Knowsley Hospitals NHS Trust,31/03/2023,Mobile Phones,COLD DECONTAMINATION WHISTON,VODAFONE LTD,46109568,37.50
Department of Health,St. Helens&Knowsley Hospitals NHS Trust,31/03/2023,Mobile Phones,COMMUNICATIONS,VODAFONE LTD,46109568,70.54
Department of Health,St. Helens&Knowsley Hospitals NHS Trust,31/03/2023,Mobile Phones,COMMUNICATIONS,VODAFONE LTD,46109568,352.71
Department of Health,St. Helens&Knowsley Hospitals NHS Trust,31/03/2023,Mobile Phones,COMMUNITY CARDIAC TEAM,VODAFONE LTD,46109568,85.22
Department of Health,St. Helens&Knowsley Hospitals NHS Trust,31/03/2023,Mobile Phones,COMMUNITY CARDIAC TEAM,VODAFONE LTD,46109568,426.10
Department of Health,St. Helens&Knowsley Hospitals NHS Trust,31/03/2023,Mobile Phones,COMMUNITY CONTINENCE SERVICE,VODAFONE LTD,46109568,24.00
Department of Health,St. Helens&Knowsley Hospitals NHS Trust,31/03/2023,Mobile Phones,COMMUNITY CONTINENCE SERVICE,VODAFONE LTD,46109568,120.00
Department of Health,St. Helens&Knowsley Hospitals NHS Trust,31/03/2023,Mobile Phones,COMMUNITY FRAILTY SERVICE,VODAFONE LTD,46109568,195.77
Department of Health,St. Helens&Knowsley Hospitals NHS Trust,31/03/2023,Mobile Phones,COMMUNITY FRAILTY SERVICE,VODAFONE LTD,46109568,978.85
Department of Health,St. Helens&Knowsley Hospitals NHS Trust,31/03/2023,Mobile Phones,COMMUNITY MATRON,VODAFONE LTD,46109568,109.78
Department of Health,St. Helens&Knowsley Hospitals NHS Trust,31/03/2023,Mobile Phones,COMMUNITY MATRON,VODAFONE LTD,46109568,548.92
Department of Health,St. Helens&Knowsley Hospitals NHS Trust,31/03/2023,Mobile Phones,COMMUNITY MIDWIFERY,VODAFONE LTD,46109568,853.94
Department of Health,St. Helens&Knowsley Hospitals NHS Trust,31/03/2023,Mobile Phones,COMMUNITY MIDWIFERY,VODAFONE LTD,46109568,"4,269.70"
Department of Health,St. Helens&Knowsley Hospitals NHS Trust,31/03/2023,Mobile Phones,COMMUNITY NURSING MANAGEMENT,VODAFONE LTD,46109568,18.00
Department of Health,St. Helens&Knowsley Hospitals NHS Trust,31/03/2023,Mobile Phones,COMMUNITY NURSING MANAGEMENT,VODAFONE LTD,46109568,90.00
Department of Health,St. Helens&Knowsley Hospitals NHS Trust,31/03/2023,Mobile Phones,COMMUNITY PAEDIATRICS,VODAFONE LTD,46109568,151.73
Department of Health,St. Helens&Knowsley Hospitals NHS Trust,31/03/2023,Mobile Phones,COMMUNITY PAEDIATRICS,VODAFONE LTD,46109568,758.65
Department of Health,St. Helens&Knowsley Hospitals NHS Trust,31/03/2023,Mobile Phones,COMMUNITY RENT,VODAFONE LTD,46109568,7.94
Department of Health,St. Helens&Knowsley Hospitals NHS Trust,31/03/2023,Mobile Phones,COMMUNITY RENT,VODAFONE LTD,46109568,39.68
Department of Health,St. Helens&Knowsley Hospitals NHS Trust,31/03/2023,Mobile Phones,COMMUNITY SERVICES MANAGEMENT,VODAFONE LTD,46109568,123.09
Department of Health,St. Helens&Knowsley Hospitals NHS Trust,31/03/2023,Mobile Phones,COMMUNITY SERVICES MANAGEMENT,VODAFONE LTD,46109568,615.45
Department of Health,St. Helens&Knowsley Hospitals NHS Trust,31/03/2023,Mobile Phones,COMPLAINTS,VODAFONE LTD,46109568,6.00
Department of Health,St. Helens&Knowsley Hospitals NHS Trust,31/03/2023,Mobile Phones,COMPLAINTS,VODAFONE LTD,46109568,30.00
Department of Health,St. Helens&Knowsley Hospitals NHS Trust,31/03/2023,Mobile Phones,COVID,VODAFONE LTD,46109568,93.05
Department of Health,St. Helens&Knowsley Hospitals NHS Trust,31/03/2023,Mobile Phones,COVID,VODAFONE LTD,46109568,465.24
Department of Health,St. Helens&Knowsley Hospitals NHS Trust,31/03/2023,Mobile Phones,DELIVERY SUITE,VODAFONE LTD,46109568,1.50
Department of Health,St. Helens&Knowsley Hospitals NHS Trust,31/03/2023,Mobile Phones,DELIVERY SUITE,VODAFONE LTD,46109568,7.50
Department of Health,St. Helens&Knowsley Hospitals NHS Trust,31/03/2023,Mobile Phones,DIABETES NURSING,VODAFONE LTD,46109568,127.24
Department of Health,St. Helens&Knowsley Hospitals NHS Trust,31/03/2023,Mobile Phones,DIABETES NURSING,VODAFONE LTD,46109568,636.20
Department of Health,St. Helens&Knowsley Hospitals NHS Trust,31/03/2023,Mobile Phones,DIABETES SNR MEDICAL,VODAFONE LTD,46109568,12.00
Department of Health,St. Helens&Knowsley Hospitals NHS Trust,31/03/2023,Mobile Phones,DIABETES SNR MEDICAL,VODAFONE LTD,46109568,60.00
Department of Health,St. Helens&Knowsley Hospitals NHS Trust,31/03/2023,Mobile Phones,DIABETES STP,VODAFONE LTD,46109568,72.00
Department of Health,St. Helens&Knowsley Hospitals NHS Trust,31/03/2023,Mobile Phones,DIABETES STP,VODAFONE LTD,46109568,360.00
Department of Health,St. Helens&Knowsley Hospitals NHS Trust,31/03/2023,Mobile Phones,DIGITAL ASPIRATION PRGRME,VODAFONE LTD,46109568,6.00
Department of Health,St. Helens&Knowsley Hospitals NHS Trust,31/03/2023,Mobile Phones,DIGITAL ASPIRATION PRGRME,VODAFONE LTD,46109568,30.00
Department of Health,St. Helens&Knowsley Hospitals NHS Trust,31/03/2023,Mobile Phones,DN CENTRAL,VODAFONE LTD,46109568,122.50
Department of Health,St. Helens&Knowsley Hospitals NHS Trust,31/03/2023,Mobile Phones,DN CENTRAL,VODAFONE LTD,46109568,612.50
Department of Health,St. Helens&Knowsley Hospitals NHS Trust,31/03/2023,Mobile Phones,DN HAYDOCK AND NEWTON,VODAFONE LTD,46109568,185.92
Department of Health,St. Helens&Knowsley Hospitals NHS Trust,31/03/2023,Mobile Phones,DN HAYDOCK AND NEWTON,VODAFONE LTD,46109568,929.61
Department of Health,St. Helens&Knowsley Hospitals NHS Trust,31/03/2023,Mobile Phones,DN NORTH,VODAFONE LTD,46109568,128.87
Department of Health,St. Helens&Knowsley Hospitals NHS Trust,31/03/2023,Mobile Phones,DN NORTH,VODAFONE LTD,46109568,644.33
Department of Health,St. Helens&Knowsley Hospitals NHS Trust,31/03/2023,Mobile Phones,DN SOUTH,VODAFONE LTD,46109568,196.23
Department of Health,St. Helens&Knowsley Hospitals NHS Trust,31/03/2023,Mobile Phones,DN SOUTH,VODAFONE LTD,46109568,981.16
Department of Health,St. Helens&Knowsley Hospitals NHS Trust,31/03/2023,Mobile Phones,DN St Helens OOH,VODAFONE LTD,46109568,96.00
Department of Health,St. Helens&Knowsley Hospitals NHS Trust,31/03/2023,Mobile Phones,DN St Helens OOH,VODAFONE LTD,46109568,480.00
Department of Health,St. Helens&Knowsley Hospitals NHS Trust,31/03/2023,Mobile Phones,DUFFY SUITE INTERMEDIATE CARE UNIT,VODAFONE LTD,46109568,43.00
Department of Health,St. Helens&Knowsley Hospitals NHS Trust,31/03/2023,Mobile Phones,DUFFY SUITE INTERMEDIATE CARE UNIT,VODAFONE LTD,46109568,215.00
Department of Health,St. Helens&Knowsley Hospitals NHS Trust,31/03/2023,Mobile Phones,EMERGENCY PLANNING,VODAFONE LTD,46109568,42.21
Department of Health,St. Helens&Knowsley Hospitals NHS Trust,31/03/2023,Mobile Phones,EMERGENCY PLANNING,VODAFONE LTD,46109568,211.05
Department of Health,St. Helens&Knowsley Hospitals NHS Trust,31/03/2023,Mobile Phones,EMIS COMMUNITY PROJECT,VODAFONE LTD,46109568,6.71
Department of Health,St. Helens&Knowsley Hospitals NHS Trust,31/03/2023,Mobile Phones,EMIS COMMUNITY PROJECT,VODAFONE LTD,46109568,33.55
Department of Health,St. Helens&Knowsley Hospitals NHS Trust,31/03/2023,Mobile Phones,EPMA,VODAFONE LTD,46109568,30.00
Department of Health,St. Helens&Knowsley Hospitals NHS Trust,31/03/2023,Mobile Phones,EPMA,VODAFONE LTD,46109568,150.00
Department of Health,St. Helens&Knowsley Hospitals NHS Trust,31/03/2023,Mobile Phones,ESTATE SURVEY SECTION,VODAFONE LTD,46109568,6.00
Department of Health,St. Helens&Knowsley Hospitals NHS Trust,31/03/2023,Mobile Phones,ESTATE SURVEY SECTION,VODAFONE LTD,46109568,30.00
Department of Health,St. Helens&Knowsley Hospitals NHS Trust,31/03/2023,Mobile Phones,EXECUTIVE PAYROLL,VODAFONE LTD,46109568,86.41
Department of Health,St. Helens&Knowsley Hospitals NHS Trust,31/03/2023,Mobile Phones,EXECUTIVE PAYROLL,VODAFONE LTD,46109568,432.07
Department of Health,St. Helens&Knowsley Hospitals NHS Trust,31/03/2023,Mobile Phones,FACILITIES MANAGEMENT,VODAFONE LTD,46109568,87.71
Department of Health,St. Helens&Knowsley Hospitals NHS Trust,31/03/2023,Mobile Phones,FACILITIES MANAGEMENT,VODAFONE LTD,46109568,438.55
Department of Health,St. Helens&Knowsley Hospitals NHS Trust,31/03/2023,Mobile Phones,FALLS NURSE,VODAFONE LTD,46109568,9.83
Department of Health,St. Helens&Knowsley Hospitals NHS Trust,31/03/2023,Mobile Phones,FALLS NURSE,VODAFONE LTD,46109568,49.15
Department of Health,St. Helens&Knowsley Hospitals NHS Trust,31/03/2023,Mobile Phones,FINANCE DIRECTORATE HQ,VODAFONE LTD,46109568,12.00
Department of Health,St. Helens&Knowsley Hospitals NHS Trust,31/03/2023,Mobile Phones,FINANCE DIRECTORATE HQ,VODAFONE LTD,46109568,60.00
Department of Health,St. Helens&Knowsley Hospitals NHS Trust,31/03/2023,Mobile Phones,GASTRO UPPER GI FUND,VODAFONE LTD,46109568,6.00
Department of Health,St. Helens&Knowsley Hospitals NHS Trust,31/03/2023,Mobile Phones,GASTRO UPPER GI FUND,VODAFONE LTD,46109568,30.00
Department of Health,St. Helens&Knowsley Hospitals NHS Trust,31/03/2023,Mobile Phones,GASTROLOGY NURSING,VODAFONE LTD,46109568,63.02
Department of Health,St. Helens&Knowsley Hospitals NHS Trust,31/03/2023,Mobile Phones,GASTROLOGY NURSING,VODAFONE LTD,46109568,315.12
Department of Health,St. Helens&Knowsley Hospitals NHS Trust,31/03/2023,Mobile Phones,GASTROLOGY SNR MEDICAL,VODAFONE LTD,46109568,43.00
Department of Health,St. Helens&Knowsley Hospitals NHS Trust,31/03/2023,Mobile Phones,GASTROLOGY SNR MEDICAL,VODAFONE LTD,46109568,215.00
Department of Health,St. Helens&Knowsley Hospitals NHS Trust,31/03/2023,Mobile Phones,GEN MED ENDOSCOPY H2,VODAFONE LTD,46109568,6.12
Department of Health,St. Helens&Knowsley Hospitals NHS Trust,31/03/2023,Mobile Phones,GEN MED ENDOSCOPY H2,VODAFONE LTD,46109568,30.61
Department of Health,St. Helens&Knowsley Hospitals NHS Trust,31/03/2023,Mobile Phones,GEN MEDICINE MEDICAL STF,VODAFONE LTD,46109568,26.50
Department of Health,St. Helens&Knowsley Hospitals NHS Trust,31/03/2023,Mobile Phones,GEN MEDICINE MEDICAL STF,VODAFONE LTD,46109568,132.50
Department of Health,St. Helens&Knowsley Hospitals NHS Trust,31/03/2023,Mobile Phones,GENERAL SURGERY MEDICAL,VODAFONE LTD,46109568,51.50
Department of Health,St. Helens&Knowsley Hospitals NHS Trust,31/03/2023,Mobile Phones,GENERAL SURGERY MEDICAL,VODAFONE LTD,46109568,257.50
Department of Health,St. Helens&Knowsley Hospitals NHS Trust,31/03/2023,Mobile Phones,GYNAE OUTPATIEN ST HELENS,VODAFONE LTD,46109568,6.00
Department of Health,St. Helens&Knowsley Hospitals NHS Trust,31/03/2023,Mobile Phones,GYNAE OUTPATIEN ST HELENS,VODAFONE LTD,46109568,30.00
Department of Health,St. Helens&Knowsley Hospitals NHS Trust,31/03/2023,Mobile Phones,HAEM + BLOOD TRANSFUSION,VODAFONE LTD,46109568,24.00
Department of Health,St. Helens&Knowsley Hospitals NHS Trust,31/03/2023,Mobile Phones,HAEM + BLOOD TRANSFUSION,VODAFONE LTD,46109568,120.00
Department of Health,St. Helens&Knowsley Hospitals NHS Trust,31/03/2023,Mobile Phones,HAEMATOLOGY MEDICAL,VODAFONE LTD,46109568,31.50
Department of Health,St. Helens&Knowsley Hospitals NHS Trust,31/03/2023,Mobile Phones,HAEMATOLOGY MEDICAL,VODAFONE LTD,46109568,157.50
Department of Health,St. Helens&Knowsley Hospitals NHS Trust,31/03/2023,Mobile Phones,HISTOPATHOLOGY/MORTUARY,VODAFONE LTD,46109568,6.00
Department of Health,St. Helens&Knowsley Hospitals NHS Trust,31/03/2023,Mobile Phones,HISTOPATHOLOGY/MORTUARY,VODAFONE LTD,46109568,30.00
Department of Health,St. Helens&Knowsley Hospitals NHS Trust,31/03/2023,Mobile Phones,HOSPITAL DISCHARGE TEAM,VODAFONE LTD,46109568,102.05
Department of Health,St. Helens&Knowsley Hospitals NHS Trust,31/03/2023,Mobile Phones,HOSPITAL DISCHARGE TEAM,VODAFONE LTD,46109568,510.26
Department of Health,St. Helens&Knowsley Hospitals NHS Trust,31/03/2023,Mobile Phones,HUMAN RESOURCES - CORE HR,VODAFONE LTD,46109568,54.00
Department of Health,St. Helens&Knowsley Hospitals NHS Trust,31/03/2023,Mobile Phones,HUMAN RESOURCES - CORE HR,VODAFONE LTD,46109568,270.00
Department of Health,St. Helens&Knowsley Hospitals NHS Trust,31/03/2023,Mobile Phones,HUMAN RESOURCES - RESOURCING,VODAFONE LTD,46109568,209.23
Department of Health,St. Helens&Knowsley Hospitals NHS Trust,31/03/2023,Mobile Phones,HUMAN RESOURCES - RESOURCING,VODAFONE LTD,46109568,"1,046.17"
Department of Health,St. Helens&Knowsley Hospitals NHS Trust,31/03/2023,Mobile Phones,I T EXECUTIVE,VODAFONE LTD,46109568,8.00
Department of Health,St. Helens&Knowsley Hospitals NHS Trust,31/03/2023,Mobile Phones,I T EXECUTIVE,VODAFONE LTD,46109568,40.00
Department of Health,St. Helens&Knowsley Hospitals NHS Trust,31/03/2023,Mobile Phones,ICU MEDICAL STAFF WHISTON,VODAFONE LTD,46109568,64.00
Department of Health,St. Helens&Knowsley Hospitals NHS Trust,31/03/2023,Mobile Phones,ICU MEDICAL STAFF WHISTON,VODAFONE LTD,46109568,320.00
Department of Health,St. Helens&Knowsley Hospitals NHS Trust,31/03/2023,Mobile Phones,ICU NURSING WHISTON,VODAFONE LTD,46109568,1.50
Department of Health,St. Helens&Knowsley Hospitals NHS Trust,31/03/2023,Mobile Phones,ICU NURSING WHISTON,VODAFONE LTD,46109568,7.50
Department of Health,St. Helens&Knowsley Hospitals NHS Trust,31/03/2023,Mobile Phones,INFANT FEEDING TEAM,VODAFONE LTD,46109568,6.00
Department of Health,St. Helens&Knowsley Hospitals NHS Trust,31/03/2023,Mobile Phones,INFANT FEEDING TEAM,VODAFONE LTD,46109568,30.00
Department of Health,St. Helens&Knowsley Hospitals NHS Trust,31/03/2023,Mobile Phones,INFECTION CONTROL,VODAFONE LTD,46109568,10.50
Department of Health,St. Helens&Knowsley Hospitals NHS Trust,31/03/2023,Mobile Phones,INFECTION CONTROL,VODAFONE LTD,46109568,52.50
Department of Health,St. Helens&Knowsley Hospitals NHS Trust,31/03/2023,Mobile Phones,INFORMATION DEPARTMENT,VODAFONE LTD,46109568,42.00
Department of Health,St. Helens&Knowsley Hospitals NHS Trust,31/03/2023,Mobile Phones,INFORMATION DEPARTMENT,VODAFONE LTD,46109568,210.00
Department of Health,St. Helens&Knowsley Hospitals NHS Trust,31/03/2023,Mobile Phones,INTERNATIONAL RECRUITMENT,VODAFONE LTD,46109568,6.00
Department of Health,St. Helens&Knowsley Hospitals NHS Trust,31/03/2023,Mobile Phones,INTERNATIONAL RECRUITMENT,VODAFONE LTD,46109568,30.00
Department of Health,St. Helens&Knowsley Hospitals NHS Trust,31/03/2023,Mobile Phones,IRREG MAINT WHISTON,VODAFONE LTD,46109568,20.00
Department of Health,St. Helens&Knowsley Hospitals NHS Trust,31/03/2023,Mobile Phones,IRREG MAINT WHISTON,VODAFONE LTD,46109568,100.00
Department of Health,St. Helens&Knowsley Hospitals NHS Trust,31/03/2023,Mobile Phones,IV THERAPY ST HELENS,VODAFONE LTD,46109568,134.28
Department of Health,St. Helens&Knowsley Hospitals NHS Trust,31/03/2023,Mobile Phones,IV THERAPY ST HELENS,VODAFONE LTD,46109568,671.41
Department of Health,St. Helens&Knowsley Hospitals NHS Trust,31/03/2023,Mobile Phones,LE-HELPDESK,VODAFONE LTD,46109568,6.37
Department of Health,St. Helens&Knowsley Hospitals NHS Trust,31/03/2023,Mobile Phones,LE-HELPDESK,VODAFONE LTD,46109568,31.87
Department of Health,St. Helens&Knowsley Hospitals NHS Trust,31/03/2023,Mobile Phones,LE-MANAGEMENT TEAM,VODAFONE LTD,46109568,60.85
Department of Health,St. Helens&Knowsley Hospitals NHS Trust,31/03/2023,Mobile Phones,LE-MANAGEMENT TEAM,VODAFONE LTD,46109568,304.25
Department of Health,St. Helens&Knowsley Hospitals NHS Trust,31/03/2023,Mobile Phones,LE-ROTATE AND CTRCT AMNDMNTS,VODAFONE LTD,46109568,3.61
Department of Health,St. Helens&Knowsley Hospitals NHS Trust,31/03/2023,Mobile Phones,LE-ROTATE AND CTRCT AMNDMNTS,VODAFONE LTD,46109568,18.07
Department of Health,St. Helens&Knowsley Hospitals NHS Trust,31/03/2023,Mobile Phones,LEGAL SERVICES,VODAFONE LTD,46109568,6.00
Department of Health,St. Helens&Knowsley Hospitals NHS Trust,31/03/2023,Mobile Phones,LEGAL SERVICES,VODAFONE LTD,46109568,30.00
Department of Health,St. Helens&Knowsley Hospitals NHS Trust,31/03/2023,Mobile Phones,LIBRARY SERVICES,VODAFONE LTD,46109568,6.00
Department of Health,St. Helens&Knowsley Hospitals NHS Trust,31/03/2023,Mobile Phones,LIBRARY SERVICES,VODAFONE LTD,46109568,30.00
Department of Health,St. Helens&Knowsley Hospitals NHS Trust,31/03/2023,Mobile Phones,MARSHALLS CROSS MEDICAL CENTRE,VODAFONE LTD,46109568,6.00
Department of Health,St. Helens&Knowsley Hospitals NHS Trust,31/03/2023,Mobile Phones,MARSHALLS CROSS MEDICAL CENTRE,VODAFONE LTD,46109568,30.00
Department of Health,St. Helens&Knowsley Hospitals NHS Trust,31/03/2023,Mobile Phones,MCG DISCHARGE CO-ORDINATORS,VODAFONE LTD,46109568,85.78
Department of Health,St. Helens&Knowsley Hospitals NHS Trust,31/03/2023,Mobile Phones,MCG DISCHARGE CO-ORDINATORS,VODAFONE LTD,46109568,428.91
Department of Health,St. Helens&Knowsley Hospitals NHS Trust,31/03/2023,Mobile Phones,MED SECRETARIES BAND 3,VODAFONE LTD,46109568,7.50
Department of Health,St. Helens&Knowsley Hospitals NHS Trust,31/03/2023,Mobile Phones,MED SECRETARIES BAND 3,VODAFONE LTD,46109568,37.50
Department of Health,St. Helens&Knowsley Hospitals NHS Trust,31/03/2023,Mobile Phones,MEDICAL CARE GROUP MGT,VODAFONE LTD,46109568,408.68
Department of Health,St. Helens&Knowsley Hospitals NHS Trust,31/03/2023,Mobile Phones,MEDICAL CARE GROUP MGT,VODAFONE LTD,46109568,"2,043.39"
Department of Health,St. Helens&Knowsley Hospitals NHS Trust,31/03/2023,Mobile Phones,MET TEAM,VODAFONE LTD,46109568,18.00
Department of Health,St. Helens&Knowsley Hospitals NHS Trust,31/03/2023,Mobile Phones,MET TEAM,VODAFONE LTD,46109568,90.00
Department of Health,St. Helens&Knowsley Hospitals NHS Trust,31/03/2023,Mobile Phones,MGMT SPECIALIST MIDWIVES,VODAFONE LTD,46109568,73.56
Department of Health,St. Helens&Knowsley Hospitals NHS Trust,31/03/2023,Mobile Phones,MGMT SPECIALIST MIDWIVES,VODAFONE LTD,46109568,367.78
Department of Health,St. Helens&Knowsley Hospitals NHS Trust,31/03/2023,Mobile Phones,MICROBIOLOGY DEPT,VODAFONE LTD,46109568,62.10
Department of Health,St. Helens&Knowsley Hospitals NHS Trust,31/03/2023,Mobile Phones,MICROBIOLOGY DEPT,VODAFONE LTD,46109568,310.50
Department of Health,St. Helens&Knowsley Hospitals NHS Trust,31/03/2023,Mobile Phones,MICROBIOLOGY MED STAFF,VODAFONE LTD,46109568,12.00
Department of Health,St. Helens&Knowsley Hospitals NHS Trust,31/03/2023,Mobile Phones,MICROBIOLOGY MED STAFF,VODAFONE LTD,46109568,60.00
Department of Health,St. Helens&Knowsley Hospitals NHS Trust,31/03/2023,Mobile Phones,MMDA PROGRAMME COSTS - SHARED SERVICES,VODAFONE LTD,46109568,"5,409.22"
Department of Health,St. Helens&Knowsley Hospitals NHS Trust,31/03/2023,Mobile Phones,MVP LEAD EMPLOYER SUPPORT,VODAFONE LTD,46109568,74.77
Department of Health,St. Helens&Knowsley Hospitals NHS Trust,31/03/2023,Mobile Phones,MVP LEAD EMPLOYER SUPPORT,VODAFONE LTD,46109568,373.84
Department of Health,St. Helens&Knowsley Hospitals NHS Trust,31/03/2023,Mobile Phones,NEWS2 Project,VODAFONE LTD,46109568,6.00
Department of Health,St. Helens&Knowsley Hospitals NHS Trust,31/03/2023,Mobile Phones,NEWS2 Project,VODAFONE LTD,46109568,30.00
Department of Health,St. Helens&Knowsley Hospitals NHS Trust,31/03/2023,Mobile Phones,NEWTON HOSPITAL OP,VODAFONE LTD,46109568,22.00
Department of Health,St. Helens&Knowsley Hospitals NHS Trust,31/03/2023,Mobile Phones,NEWTON HOSPITAL OP,VODAFONE LTD,46109568,109.99
Department of Health,St. Helens&Knowsley Hospitals NHS Trust,31/03/2023,Mobile Phones,NEWTON INTERMEDIATE CARE SERVICE,VODAFONE LTD,46109568,53.66
Department of Health,St. Helens&Knowsley Hospitals NHS Trust,31/03/2023,Mobile Phones,NEWTON INTERMEDIATE CARE SERVICE,VODAFONE LTD,46109568,268.28
Department of Health,St. Helens&Knowsley Hospitals NHS Trust,31/03/2023,Mobile Phones,NORTH TREATMENT ROOMS,VODAFONE LTD,46109568,6.60
Department of Health,St. Helens&Knowsley Hospitals NHS Trust,31/03/2023,Mobile Phones,NORTH TREATMENT ROOMS,VODAFONE LTD,46109568,33.00
Department of Health,St. Helens&Knowsley Hospitals NHS Trust,31/03/2023,Mobile Phones,NURSING ADMINISTRATION,VODAFONE LTD,46109568,111.52
Department of Health,St. Helens&Knowsley Hospitals NHS Trust,31/03/2023,Mobile Phones,NURSING ADMINISTRATION,VODAFONE LTD,46109568,557.59
Department of Health,St. Helens&Knowsley Hospitals NHS Trust,31/03/2023,Mobile Phones,NURSING DIRECTOR ADMIN STAFF,VODAFONE LTD,46109568,6.00
Department of Health,St. Helens&Knowsley Hospitals NHS Trust,31/03/2023,Mobile Phones,NURSING DIRECTOR ADMIN STAFF,VODAFONE LTD,46109568,30.00
Department of Health,St. Helens&Knowsley Hospitals NHS Trust,31/03/2023,Mobile Phones,OBS + GYNAE MEDICAL STAFF,VODAFONE LTD,46109568,12.00
Department of Health,St. Helens&Knowsley Hospitals NHS Trust,31/03/2023,Mobile Phones,OBS + GYNAE MEDICAL STAFF,VODAFONE LTD,46109568,60.00
Department of Health,St. Helens&Knowsley Hospitals NHS Trust,31/03/2023,Mobile Phones,OCCUPATIONAL HEALTH MED,VODAFONE LTD,46109568,22.50
Department of Health,St. Helens&Knowsley Hospitals NHS Trust,31/03/2023,Mobile Phones,OCCUPATIONAL HEALTH MED,VODAFONE LTD,46109568,112.50
Department of Health,St. Helens&Knowsley Hospitals NHS Trust,31/03/2023,Mobile Phones,OCCUPATIONAL HEALTH NURS,VODAFONE LTD,46109568,18.00
Department of Health,St. Helens&Knowsley Hospitals NHS Trust,31/03/2023,Mobile Phones,OCCUPATIONAL HEALTH NURS,VODAFONE LTD,46109568,90.00
Department of Health,St. Helens&Knowsley Hospitals NHS Trust,31/03/2023,Mobile Phones,OPHTH RENNIE EYE CLINIC,VODAFONE LTD,46109568,6.00
Department of Health,St. Helens&Knowsley Hospitals NHS Trust,31/03/2023,Mobile Phones,OPHTH RENNIE EYE CLINIC,VODAFONE LTD,46109568,30.00
Department of Health,St. Helens&Knowsley Hospitals NHS Trust,31/03/2023,Mobile Phones,ORGANISATIONAL L And D,VODAFONE LTD,46109568,1.50
Department of Health,St. Helens&Knowsley Hospitals NHS Trust,31/03/2023,Mobile Phones,ORGANISATIONAL L And D,VODAFONE LTD,46109568,7.50
Department of Health,St. Helens&Knowsley Hospitals NHS Trust,31/03/2023,Mobile Phones,ORTHOPAEDIC MEDICAL STAFF,VODAFONE LTD,46109568,12.00
Department of Health,St. Helens&Knowsley Hospitals NHS Trust,31/03/2023,Mobile Phones,ORTHOPAEDIC MEDICAL STAFF,VODAFONE LTD,46109568,60.00
Department of Health,St. Helens&Knowsley Hospitals NHS Trust,31/03/2023,Mobile Phones,ORTHOPTICS DEPARTMENT,VODAFONE LTD,46109568,23.69
Department of Health,St. Helens&Knowsley Hospitals NHS Trust,31/03/2023,Mobile Phones,ORTHOPTICS DEPARTMENT,VODAFONE LTD,46109568,118.45
Department of Health,St. Helens&Knowsley Hospitals NHS Trust,31/03/2023,Mobile Phones,OUTPATIENTS ST HELENS,VODAFONE LTD,46109568,6.00
Department of Health,St. Helens&Knowsley Hospitals NHS Trust,31/03/2023,Mobile Phones,OUTPATIENTS ST HELENS,VODAFONE LTD,46109568,30.00
Department of Health,St. Helens&Knowsley Hospitals NHS Trust,31/03/2023,Mobile Phones,PAED SPECIALIST NURSES,VODAFONE LTD,46109568,31.84
Department of Health,St. Helens&Knowsley Hospitals NHS Trust,31/03/2023,Mobile Phones,PAED SPECIALIST NURSES,VODAFONE LTD,46109568,159.20
Department of Health,St. Helens&Knowsley Hospitals NHS Trust,31/03/2023,Mobile Phones,PAEDIATRIC CONTINENCE,VODAFONE LTD,46109568,12.00
Department of Health,St. Helens&Knowsley Hospitals NHS Trust,31/03/2023,Mobile Phones,PAEDIATRIC CONTINENCE,VODAFONE LTD,46109568,60.00
Department of Health,St. Helens&Knowsley Hospitals NHS Trust,31/03/2023,Mobile Phones,PAEDIATRIC MEDICAL STAFF,VODAFONE LTD,46109568,1.50
Department of Health,St. Helens&Knowsley Hospitals NHS Trust,31/03/2023,Mobile Phones,PAEDIATRIC MEDICAL STAFF,VODAFONE LTD,46109568,7.50
Department of Health,St. Helens&Knowsley Hospitals NHS Trust,31/03/2023,Mobile Phones,PAEDIATRICS WARD CLERKS,VODAFONE LTD,46109568,1.50
Department of Health,St. Helens&Knowsley Hospitals NHS Trust,31/03/2023,Mobile Phones,PAEDIATRICS WARD CLERKS,VODAFONE LTD,46109568,7.50
Department of Health,St. Helens&Knowsley Hospitals NHS Trust,31/03/2023,Mobile Phones,PALLIATIVE CARE WHISTON,VODAFONE LTD,46109568,31.94
Department of Health,St. Helens&Knowsley Hospitals NHS Trust,31/03/2023,Mobile Phones,PALLIATIVE CARE WHISTON,VODAFONE LTD,46109568,159.68
Department of Health,St. Helens&Knowsley Hospitals NHS Trust,31/03/2023,Mobile Phones,PATHOLOGY GENERAL,VODAFONE LTD,46109568,122.22
Department of Health,St. Helens&Knowsley Hospitals NHS Trust,31/03/2023,Mobile Phones,PATHOLOGY GENERAL,VODAFONE LTD,46109568,611.08
Department of Health,St. Helens&Knowsley Hospitals NHS Trust,31/03/2023,Mobile Phones,PATIENT ACCESS MGMT,VODAFONE LTD,46109568,18.06
Department of Health,St. Helens&Knowsley Hospitals NHS Trust,31/03/2023,Mobile Phones,PATIENT ACCESS MGMT,VODAFONE LTD,46109568,90.30
Department of Health,St. Helens&Knowsley Hospitals NHS Trust,31/03/2023,Mobile Phones,PAYING PATIENTS,VODAFONE LTD,46109568,18.00
Department of Health,St. Helens&Knowsley Hospitals NHS Trust,31/03/2023,Mobile Phones,PAYING PATIENTS,VODAFONE LTD,46109568,90.00
Department of Health,St. Helens&Knowsley Hospitals NHS Trust,31/03/2023,Mobile Phones,PAYROLL SERVICES,VODAFONE LTD,46109568,12.00
Department of Health,St. Helens&Knowsley Hospitals NHS Trust,31/03/2023,Mobile Phones,PAYROLL SERVICES,VODAFONE LTD,46109568,60.00
Department of Health,St. Helens&Knowsley Hospitals NHS Trust,31/03/2023,Mobile Phones,PFI DESIGN + CONSTRUCTION,VODAFONE LTD,46109568,42.00
Department of Health,St. Helens&Knowsley Hospitals NHS Trust,31/03/2023,Mobile Phones,PFI DESIGN + CONSTRUCTION,VODAFONE LTD,46109568,210.00
Department of Health,St. Helens&Knowsley Hospitals NHS Trust,31/03/2023,Mobile Phones,PFI ENABLING WORKS,VODAFONE LTD,46109568,6.06
Department of Health,St. Helens&Knowsley Hospitals NHS Trust,31/03/2023,Mobile Phones,PFI ENABLING WORKS,VODAFONE LTD,46109568,30.30
Department of Health,St. Helens&Knowsley Hospitals NHS Trust,31/03/2023,Mobile Phones,PHARMACY GENERAL,VODAFONE LTD,46109568,123.12
Department of Health,St. Helens&Knowsley Hospitals NHS Trust,31/03/2023,Mobile Phones,PHARMACY GENERAL,VODAFONE LTD,46109568,615.59
Department of Health,St. Helens&Knowsley Hospitals NHS Trust,31/03/2023,Mobile Phones,PROJECTS And TRAINING,VODAFONE LTD,46109568,49.56
Department of Health,St. Helens&Knowsley Hospitals NHS Trust,31/03/2023,Mobile Phones,PROJECTS And TRAINING,VODAFONE LTD,46109568,247.80
Department of Health,St. Helens&Knowsley Hospitals NHS Trust,31/03/2023,Mobile Phones,RADIOGRAPHY WHISTON,VODAFONE LTD,46109568,12.53
Department of Health,St. Helens&Knowsley Hospitals NHS Trust,31/03/2023,Mobile Phones,RADIOGRAPHY WHISTON,VODAFONE LTD,46109568,62.63
Department of Health,St. Helens&Knowsley Hospitals NHS Trust,31/03/2023,Mobile Phones,RADIOLOGY MEDICAL STAFF,VODAFONE LTD,46109568,6.00
Department of Health,St. Helens&Knowsley Hospitals NHS Trust,31/03/2023,Mobile Phones,RADIOLOGY MEDICAL STAFF,VODAFONE LTD,46109568,30.00
Department of Health,St. Helens&Knowsley Hospitals NHS Trust,31/03/2023,Mobile Phones,RD AND I,VODAFONE LTD,46109568,25.50
Department of Health,St. Helens&Knowsley Hospitals NHS Trust,31/03/2023,Mobile Phones,RD AND I,VODAFONE LTD,46109568,127.50
Department of Health,St. Helens&Knowsley Hospitals NHS Trust,31/03/2023,Mobile Phones,REABLEMENT TEAM,VODAFONE LTD,46109568,22.50
Department of Health,St. Helens&Knowsley Hospitals NHS Trust,31/03/2023,Mobile Phones,REABLEMENT TEAM,VODAFONE LTD,46109568,112.50
Department of Health,St. Helens&Knowsley Hospitals NHS Trust,31/03/2023,Mobile Phones,REGIONAL CANCER TRANSFORMATION,VODAFONE LTD,46109568,45.96
Department of Health,St. Helens&Knowsley Hospitals NHS Trust,31/03/2023,Mobile Phones,REGIONAL CANCER TRANSFORMATION,VODAFONE LTD,46109568,229.78
Department of Health,St. Helens&Knowsley Hospitals NHS Trust,31/03/2023,Mobile Phones,REGIONAL VACCINATION CENTRE,VODAFONE LTD,46109568,24.00
Department of Health,St. Helens&Knowsley Hospitals NHS Trust,31/03/2023,Mobile Phones,REGIONAL VACCINATION CENTRE,VODAFONE LTD,46109568,120.00
Department of Health,St. Helens&Knowsley Hospitals NHS Trust,31/03/2023,Mobile Phones,RESPIRATORY NURSING,VODAFONE LTD,46109568,36.07
Department of Health,St. Helens&Knowsley Hospitals NHS Trust,31/03/2023,Mobile Phones,RESPIRATORY NURSING,VODAFONE LTD,46109568,180.35
Department of Health,St. Helens&Knowsley Hospitals NHS Trust,31/03/2023,Mobile Phones,RESPIRATORY SNR MEDICAL,VODAFONE LTD,46109568,76.39
Department of Health,St. Helens&Knowsley Hospitals NHS Trust,31/03/2023,Mobile Phones,RESPIRATORY SNR MEDICAL,VODAFONE LTD,46109568,381.94
Department of Health,St. Helens&Knowsley Hospitals NHS Trust,31/03/2023,Mobile Phones,RESUSCITATION TRAINING,VODAFONE LTD,46109568,6.00
Department of Health,St. Helens&Knowsley Hospitals NHS Trust,31/03/2023,Mobile Phones,RESUSCITATION TRAINING,VODAFONE LTD,46109568,30.00
Department of Health,St. Helens&Knowsley Hospitals NHS Trust,31/03/2023,Mobile Phones,SAFEGUARDING,VODAFONE LTD,46109568,13.52
Department of Health,St. Helens&Knowsley Hospitals NHS Trust,31/03/2023,Mobile Phones,SAFEGUARDING,VODAFONE LTD,46109568,67.62
Department of Health,St. Helens&Knowsley Hospitals NHS Trust,31/03/2023,Mobile Phones,SANDERSON SUITE GENERAL SURGERY,VODAFONE LTD,46109568,12.00
Department of Health,St. Helens&Knowsley Hospitals NHS Trust,31/03/2023,Mobile Phones,SANDERSON SUITE GENERAL SURGERY,VODAFONE LTD,46109568,60.00
Department of Health,St. Helens&Knowsley Hospitals NHS Trust,31/03/2023,Mobile Phones,SECURITY SERVICES,VODAFONE LTD,46109568,42.00
Department of Health,St. Helens&Knowsley Hospitals NHS Trust,31/03/2023,Mobile Phones,SECURITY SERVICES,VODAFONE LTD,46109568,210.00
Department of Health,St. Helens&Knowsley Hospitals NHS Trust,31/03/2023,Mobile Phones,SEDDON SUITE TRAUMA REHAB UNIT,VODAFONE LTD,46109568,7.50
Department of Health,St. Helens&Knowsley Hospitals NHS Trust,31/03/2023,Mobile Phones,SEDDON SUITE TRAUMA REHAB UNIT,VODAFONE LTD,46109568,37.50
Department of Health,St. Helens&Knowsley Hospitals NHS Trust,31/03/2023,Mobile Phones,SEPSIS,VODAFONE LTD,46109568,6.00
Department of Health,St. Helens&Knowsley Hospitals NHS Trust,31/03/2023,Mobile Phones,SEPSIS,VODAFONE LTD,46109568,30.00
Department of Health,St. Helens&Knowsley Hospitals NHS Trust,31/03/2023,Mobile Phones,SERV INCR 4 TEACHING-SIFT,VODAFONE LTD,46109568,47.12
Department of Health,St. Helens&Knowsley Hospitals NHS Trust,31/03/2023,Mobile Phones,SERV INCR 4 TEACHING-SIFT,VODAFONE LTD,46109568,235.61
Department of Health,St. Helens&Knowsley Hospitals NHS Trust,31/03/2023,Mobile Phones,SERVICE DELIVERY INFRASTRUCTURE,VODAFONE LTD,46109568,21.60
Department of Health,St. Helens&Knowsley Hospitals NHS Trust,31/03/2023,Mobile Phones,SERVICE DELIVERY INFRASTRUCTURE,VODAFONE LTD,46109568,108.00
Department of Health,St. Helens&Knowsley Hospitals NHS Trust,31/03/2023,Mobile Phones,SERVICE DELIVERY OPERATIONS,VODAFONE LTD,46109568,0.60
Department of Health,St. Helens&Knowsley Hospitals NHS Trust,31/03/2023,Mobile Phones,SERVICE DELIVERY OPERATIONS,VODAFONE LTD,46109568,3.00
Department of Health,St. Helens&Knowsley Hospitals NHS Trust,31/03/2023,Mobile Phones,SEXUAL HEALTH,VODAFONE LTD,46109568,137.48
Department of Health,St. Helens&Knowsley Hospitals NHS Trust,31/03/2023,Mobile Phones,SEXUAL HEALTH,VODAFONE LTD,46109568,687.39
Department of Health,St. Helens&Knowsley Hospitals NHS Trust,31/03/2023,Mobile Phones,SOHT BLOOD SCIENCES,VODAFONE LTD,46109568,1.50
Department of Health,St. Helens&Knowsley Hospitals NHS Trust,31/03/2023,Mobile Phones,SOHT BLOOD SCIENCES,VODAFONE LTD,46109568,7.50
Department of Health,St. Helens&Knowsley Hospitals NHS Trust,31/03/2023,Mobile Phones,SOHT PHLEBOTOMY,VODAFONE LTD,46109568,30.00
Department of Health,St. Helens&Knowsley Hospitals NHS Trust,31/03/2023,Mobile Phones,SOHT PHLEBOTOMY,VODAFONE LTD,46109568,150.00
Department of Health,St. Helens&Knowsley Hospitals NHS Trust,31/03/2023,Mobile Phones,ST HELENS COMMUNITY PHLEBOTOMY,VODAFONE LTD,46109568,18.00
Department of Health,St. Helens&Knowsley Hospitals NHS Trust,31/03/2023,Mobile Phones,ST HELENS COMMUNITY PHLEBOTOMY,VODAFONE LTD,46109568,90.00
Department of Health,St. Helens&Knowsley Hospitals NHS Trust,31/03/2023,Mobile Phones,ST HELENS CONTACT CARE IC THERAPY TEAM,VODAFONE LTD,46109568,56.29
Department of Health,St. Helens&Knowsley Hospitals NHS Trust,31/03/2023,Mobile Phones,ST HELENS CONTACT CARE IC THERAPY TEAM,VODAFONE LTD,46109568,281.46
Department of Health,St. Helens&Knowsley Hospitals NHS Trust,31/03/2023,Mobile Phones,ST HELENS CONTACT CARES REABLEMENT TEAM,VODAFONE LTD,46109568,38.21
Department of Health,St. Helens&Knowsley Hospitals NHS Trust,31/03/2023,Mobile Phones,ST HELENS CONTACT CARES REABLEMENT TEAM,VODAFONE LTD,46109568,191.03
Department of Health,St. Helens&Knowsley Hospitals NHS Trust,31/03/2023,Mobile Phones,ST HELENS UTC,VODAFONE LTD,46109568,31.24
Department of Health,St. Helens&Knowsley Hospitals NHS Trust,31/03/2023,Mobile Phones,ST HELENS UTC,VODAFONE LTD,46109568,156.22
Department of Health,St. Helens&Knowsley Hospitals NHS Trust,31/03/2023,Mobile Phones,STROKE/REHAB NURSING,VODAFONE LTD,46109568,6.00
Department of Health,St. Helens&Knowsley Hospitals NHS Trust,31/03/2023,Mobile Phones,STROKE/REHAB NURSING,VODAFONE LTD,46109568,30.00
Department of Health,St. Helens&Knowsley Hospitals NHS Trust,31/03/2023,Mobile Phones,SURGICAL CARE MANAGEMENT,VODAFONE LTD,46109568,164.17
Department of Health,St. Helens&Knowsley Hospitals NHS Trust,31/03/2023,Mobile Phones,SURGICAL CARE MANAGEMENT,VODAFONE LTD,46109568,820.83
Department of Health,St. Helens&Knowsley Hospitals NHS Trust,31/03/2023,Mobile Phones,SURGICAL CARE SECS,VODAFONE LTD,46109568,6.00
Department of Health,St. Helens&Knowsley Hospitals NHS Trust,31/03/2023,Mobile Phones,SURGICAL CARE SECS,VODAFONE LTD,46109568,30.00
Department of Health,St. Helens&Knowsley Hospitals NHS Trust,31/03/2023,Mobile Phones,THEATRES ANAESTHETICS WH,VODAFONE LTD,46109568,29.00
Department of Health,St. Helens&Knowsley Hospitals NHS Trust,31/03/2023,Mobile Phones,THEATRES ANAESTHETICS WH,VODAFONE LTD,46109568,145.00
Department of Health,St. Helens&Knowsley Hospitals NHS Trust,31/03/2023,Mobile Phones,THEATRES BURNS + PLASTICS,VODAFONE LTD,46109568,15.37
Department of Health,St. Helens&Knowsley Hospitals NHS Trust,31/03/2023,Mobile Phones,THEATRES BURNS + PLASTICS,VODAFONE LTD,46109568,76.85
Department of Health,St. Helens&Knowsley Hospitals NHS Trust,31/03/2023,Mobile Phones,THEATRES DIRECTORATE MGT,VODAFONE LTD,46109568,110.56
Department of Health,St. Helens&Knowsley Hospitals NHS Trust,31/03/2023,Mobile Phones,THEATRES DIRECTORATE MGT,VODAFONE LTD,46109568,552.80
Department of Health,St. Helens&Knowsley Hospitals NHS Trust,31/03/2023,Mobile Phones,THEATRES ENT WHISTON,VODAFONE LTD,46109568,21.37
Department of Health,St. Helens&Knowsley Hospitals NHS Trust,31/03/2023,Mobile Phones,THEATRES ENT WHISTON,VODAFONE LTD,46109568,106.85
Department of Health,St. Helens&Knowsley Hospitals NHS Trust,31/03/2023,Mobile Phones,THEATRES GEN SURGERY/UROL,VODAFONE LTD,46109568,3.00
Department of Health,St. Helens&Knowsley Hospitals NHS Trust,31/03/2023,Mobile Phones,THEATRES GEN SURGERY/UROL,VODAFONE LTD,46109568,15.00
Department of Health,St. Helens&Knowsley Hospitals NHS Trust,31/03/2023,Mobile Phones,THEATRES MAIN ST HELEN'S,VODAFONE LTD,46109568,11.29
Department of Health,St. Helens&Knowsley Hospitals NHS Trust,31/03/2023,Mobile Phones,THEATRES MAIN ST HELEN'S,VODAFONE LTD,46109568,56.45
Department of Health,St. Helens&Knowsley Hospitals NHS Trust,31/03/2023,Mobile Phones,THEATRES MATERNITY WH,VODAFONE LTD,46109568,9.00
Department of Health,St. Helens&Knowsley Hospitals NHS Trust,31/03/2023,Mobile Phones,THEATRES MATERNITY WH,VODAFONE LTD,46109568,45.00
Department of Health,St. Helens&Knowsley Hospitals NHS Trust,31/03/2023,Mobile Phones,THEATRES MEDICAL STAFF,VODAFONE LTD,46109568,12.07
Department of Health,St. Helens&Knowsley Hospitals NHS Trust,31/03/2023,Mobile Phones,THEATRES MEDICAL STAFF,VODAFONE LTD,46109568,60.35
Department of Health,St. Helens&Knowsley Hospitals NHS Trust,31/03/2023,Mobile Phones,THEATRES TRAU ORTHOPAEDIC,VODAFONE LTD,46109568,1.50
Department of Health,St. Helens&Knowsley Hospitals NHS Trust,31/03/2023,Mobile Phones,THEATRES TRAU ORTHOPAEDIC,VODAFONE LTD,46109568,7.50
Department of Health,St. Helens&Knowsley Hospitals NHS Trust,31/03/2023,Mobile Phones,THERAPY - ACUTE MEDICINE,VODAFONE LTD,46109568,6.00
Department of Health,St. Helens&Knowsley Hospitals NHS Trust,31/03/2023,Mobile Phones,THERAPY - ACUTE MEDICINE,VODAFONE LTD,46109568,30.00
Department of Health,St. Helens&Knowsley Hospitals NHS Trust,31/03/2023,Mobile Phones,THERAPY - AHP FACULTY PROJECT,VODAFONE LTD,46109568,6.00
Department of Health,St. Helens&Knowsley Hospitals NHS Trust,31/03/2023,Mobile Phones,THERAPY - AHP FACULTY PROJECT,VODAFONE LTD,46109568,30.00
Department of Health,St. Helens&Knowsley Hospitals NHS Trust,31/03/2023,Mobile Phones,THERAPY - MEDICINES FOR OLDER PEOPLE,VODAFONE LTD,46109568,1.50
Department of Health,St. Helens&Knowsley Hospitals NHS Trust,31/03/2023,Mobile Phones,THERAPY - MEDICINES FOR OLDER PEOPLE,VODAFONE LTD,46109568,7.50
Department of Health,St. Helens&Knowsley Hospitals NHS Trust,31/03/2023,Mobile Phones,THERAPY - SEDDON REHAB UNIT,VODAFONE LTD,46109568,6.00
Department of Health,St. Helens&Knowsley Hospitals NHS Trust,31/03/2023,Mobile Phones,THERAPY - SEDDON REHAB UNIT,VODAFONE LTD,46109568,30.00
Department of Health,St. Helens&Knowsley Hospitals NHS Trust,31/03/2023,Mobile Phones,THERAPY MANAGEMENT & ADMIN.,VODAFONE LTD,46109568,167.88
Department of Health,St. Helens&Knowsley Hospitals NHS Trust,31/03/2023,Mobile Phones,THERAPY MANAGEMENT & ADMIN.,VODAFONE LTD,46109568,839.40
Department of Health,St. Helens&Knowsley Hospitals NHS Trust,31/03/2023,Mobile Phones,TISSUE VIABILITY,VODAFONE LTD,46109568,9.00
Department of Health,St. Helens&Knowsley Hospitals NHS Trust,31/03/2023,Mobile Phones,TISSUE VIABILITY,VODAFONE LTD,46109568,45.00
Department of Health,St. Helens&Knowsley Hospitals NHS Trust,31/03/2023,Mobile Phones,TRANSFER LOUNGE,VODAFONE LTD,46109568,1.50
Department of Health,St. Helens&Knowsley Hospitals NHS Trust,31/03/2023,Mobile Phones,TRANSFER LOUNGE,VODAFONE LTD,46109568,7.50
Department of Health,St. Helens&Knowsley Hospitals NHS Trust,31/03/2023,Mobile Phones,TRAUMA ORTHOPAEDICS,VODAFONE LTD,46109568,6.00
Department of Health,St. Helens&Knowsley Hospitals NHS Trust,31/03/2023,Mobile Phones,TRAUMA ORTHOPAEDICS,VODAFONE LTD,46109568,30.00
Department of Health,St. Helens&Knowsley Hospitals NHS Trust,31/03/2023,Mobile Phones,TRUST IT SYSTEMS,VODAFONE LTD,46109568,17.25
Department of Health,St. Helens&Knowsley Hospitals NHS Trust,31/03/2023,Mobile Phones,TRUST IT SYSTEMS,VODAFONE LTD,46109568,86.26
Department of Health,St. Helens&Knowsley Hospitals NHS Trust,31/03/2023,Mobile Phones,TRUST RECHARGES,VODAFONE LTD,46109568,269.47
Department of Health,St. Helens&Knowsley Hospitals NHS Trust,31/03/2023,Mobile Phones,TRUST RECHARGES,VODAFONE LTD,46109568,"1,347.35"
Department of Health,St. Helens&Knowsley Hospitals NHS Trust,31/03/2023,Mobile Phones,UROLOGY MEDICAL STAFF,VODAFONE LTD,46109568,34.00
Department of Health,St. Helens&Knowsley Hospitals NHS Trust,31/03/2023,Mobile Phones,UROLOGY MEDICAL STAFF,VODAFONE LTD,46109568,170.00
Department of Health,St. Helens&Knowsley Hospitals NHS Trust,31/03/2023,Mobile Phones,UROLOGY SUITE,VODAFONE LTD,46109568,33.67
Department of Health,St. Helens&Knowsley Hospitals NHS Trust,31/03/2023,Mobile Phones,UROLOGY SUITE,VODAFONE LTD,46109568,168.35
Department of Health,St. Helens&Knowsley Hospitals NHS Trust,31/03/2023,Mobile Phones,VOLUNTEERS,VODAFONE LTD,46109568,12.00
Department of Health,St. Helens&Knowsley Hospitals NHS Trust,31/03/2023,Mobile Phones,VOLUNTEERS,VODAFONE LTD,46109568,60.00
Department of Health,St. Helens&Knowsley Hospitals NHS Trust,31/03/2023,Mobile Phones,WARD 1A MCG,VODAFONE LTD,46109568,52.23
Department of Health,St. Helens&Knowsley Hospitals NHS Trust,31/03/2023,Mobile Phones,WARD 1A MCG,VODAFONE LTD,46109568,261.13
Department of Health,St. Helens&Knowsley Hospitals NHS Trust,31/03/2023,Mobile Phones,WARD 1B ACUTE MEDICAL UNIT,VODAFONE LTD,46109568,6.12
Department of Health,St. Helens&Knowsley Hospitals NHS Trust,31/03/2023,Mobile Phones,WARD 1B ACUTE MEDICAL UNIT,VODAFONE LTD,46109568,30.61
Department of Health,St. Helens&Knowsley Hospitals NHS Trust,31/03/2023,Mobile Phones,WARD 1C ACUTE MEDICAL UNIT,VODAFONE LTD,46109568,12.00
Department of Health,St. Helens&Knowsley Hospitals NHS Trust,31/03/2023,Mobile Phones,WARD 1C ACUTE MEDICAL UNIT,VODAFONE LTD,46109568,60.00
Department of Health,St. Helens&Knowsley Hospitals NHS Trust,31/03/2023,Mobile Phones,WARD 1E CORONARY CARE UNIT,VODAFONE LTD,46109568,6.00
Department of Health,St. Helens&Knowsley Hospitals NHS Trust,31/03/2023,Mobile Phones,WARD 1E CORONARY CARE UNIT,VODAFONE LTD,46109568,30.00
Department of Health,St. Helens&Knowsley Hospitals NHS Trust,31/03/2023,Mobile Phones,WARD 2A HAEMATOLOGY,VODAFONE LTD,46109568,24.00
Department of Health,St. Helens&Knowsley Hospitals NHS Trust,31/03/2023,Mobile Phones,WARD 2A HAEMATOLOGY,VODAFONE LTD,46109568,120.00
Department of Health,St. Helens&Knowsley Hospitals NHS Trust,31/03/2023,Mobile Phones,WARD 2B RESPIRATORY,VODAFONE LTD,46109568,6.00
Department of Health,St. Helens&Knowsley Hospitals NHS Trust,31/03/2023,Mobile Phones,WARD 2B RESPIRATORY,VODAFONE LTD,46109568,30.00
Department of Health,St. Helens&Knowsley Hospitals NHS Trust,31/03/2023,Mobile Phones,WARD 2C RESPIRATORY,VODAFONE LTD,46109568,12.00
Department of Health,St. Helens&Knowsley Hospitals NHS Trust,31/03/2023,Mobile Phones,WARD 2C RESPIRATORY,VODAFONE LTD,46109568,60.00
Department of Health,St. Helens&Knowsley Hospitals NHS Trust,31/03/2023,Mobile Phones,WARD 2D GENERAL MEDICINE,VODAFONE LTD,46109568,6.00
Department of Health,St. Helens&Knowsley Hospitals NHS Trust,31/03/2023,Mobile Phones,WARD 2D GENERAL MEDICINE,VODAFONE LTD,46109568,30.00
Department of Health,St. Helens&Knowsley Hospitals NHS Trust,31/03/2023,Mobile Phones,WARD 3A PLASTICS,VODAFONE LTD,46109568,19.50
Department of Health,St. Helens&Knowsley Hospitals NHS Trust,31/03/2023,Mobile Phones,WARD 3A PLASTICS,VODAFONE LTD,46109568,97.50
Department of Health,St. Helens&Knowsley Hospitals NHS Trust,31/03/2023,Mobile Phones,WARD 3ALPHA ORTHOPAEDICS,VODAFONE LTD,46109568,6.00
Department of Health,St. Helens&Knowsley Hospitals NHS Trust,31/03/2023,Mobile Phones,WARD 3ALPHA ORTHOPAEDICS,VODAFONE LTD,46109568,30.00
Department of Health,St. Helens&Knowsley Hospitals NHS Trust,31/03/2023,Mobile Phones,WARD 3B ORTHOPAEDICS,VODAFONE LTD,46109568,6.00
Department of Health,St. Helens&Knowsley Hospitals NHS Trust,31/03/2023,Mobile Phones,WARD 3B ORTHOPAEDICS,VODAFONE LTD,46109568,30.00
Department of Health,St. Helens&Knowsley Hospitals NHS Trust,31/03/2023,Mobile Phones,WARD 3C GENERAL MEDICINE,VODAFONE LTD,46109568,30.00
Department of Health,St. Helens&Knowsley Hospitals NHS Trust,31/03/2023,Mobile Phones,WARD 3C GENERAL MEDICINE,VODAFONE LTD,46109568,150.00
Department of Health,St. Helens&Knowsley Hospitals NHS Trust,31/03/2023,Mobile Phones,WARD 3D GASTROENTEROLOGY,VODAFONE LTD,46109568,18.00
Department of Health,St. Helens&Knowsley Hospitals NHS Trust,31/03/2023,Mobile Phones,WARD 3D GASTROENTEROLOGY,VODAFONE LTD,46109568,90.00
Department of Health,St. Helens&Knowsley Hospitals NHS Trust,31/03/2023,Mobile Phones,WARD 3E GYNAECOLOGY,VODAFONE LTD,46109568,24.00
Department of Health,St. Helens&Knowsley Hospitals NHS Trust,31/03/2023,Mobile Phones,WARD 3E GYNAECOLOGY,VODAFONE LTD,46109568,120.00
Department of Health,St. Helens&Knowsley Hospitals NHS Trust,31/03/2023,Mobile Phones,WARD 3F PAEDIATRICS,VODAFONE LTD,46109568,16.39
Department of Health,St. Helens&Knowsley Hospitals NHS Trust,31/03/2023,Mobile Phones,WARD 3F PAEDIATRICS,VODAFONE LTD,46109568,81.96
Department of Health,St. Helens&Knowsley Hospitals NHS Trust,31/03/2023,Mobile Phones,WARD 4A GENERAL SURGERY,VODAFONE LTD,46109568,12.00
Department of Health,St. Helens&Knowsley Hospitals NHS Trust,31/03/2023,Mobile Phones,WARD 4A GENERAL SURGERY,VODAFONE LTD,46109568,60.00
Department of Health,St. Helens&Knowsley Hospitals NHS Trust,31/03/2023,Mobile Phones,WARD 4B GENERAL SURGERY,VODAFONE LTD,46109568,6.00
Department of Health,St. Helens&Knowsley Hospitals NHS Trust,31/03/2023,Mobile Phones,WARD 4B GENERAL SURGERY,VODAFONE LTD,46109568,30.00
Department of Health,St. Helens&Knowsley Hospitals NHS Trust,31/03/2023,Mobile Phones,WARD 4C GENERAL SURGERY,VODAFONE LTD,46109568,6.00
Department of Health,St. Helens&Knowsley Hospitals NHS Trust,31/03/2023,Mobile Phones,WARD 4C GENERAL SURGERY,VODAFONE LTD,46109568,30.00
Department of Health,St. Helens&Knowsley Hospitals NHS Trust,31/03/2023,Mobile Phones,WARD 4D BURNS,VODAFONE LTD,46109568,16.80
Department of Health,St. Helens&Knowsley Hospitals NHS Trust,31/03/2023,Mobile Phones,WARD 4D BURNS,VODAFONE LTD,46109568,84.00
Department of Health,St. Helens&Knowsley Hospitals NHS Trust,31/03/2023,Mobile Phones,WARD 4F PAEDIATRICS,VODAFONE LTD,46109568,7.94
Department of Health,St. Helens&Knowsley Hospitals NHS Trust,31/03/2023,Mobile Phones,WARD 4F PAEDIATRICS,VODAFONE LTD,46109568,39.68
Department of Health,St. Helens&Knowsley Hospitals NHS Trust,31/03/2023,Mobile Phones,WARD 5A CARE OF THE ELDERLY,VODAFONE LTD,46109568,72.12
Department of Health,St. Helens&Knowsley Hospitals NHS Trust,31/03/2023,Mobile Phones,WARD 5A CARE OF THE ELDERLY,VODAFONE LTD,46109568,360.60
Department of Health,St. Helens&Knowsley Hospitals NHS Trust,31/03/2023,Mobile Phones,WARD 5B CARE OF THE ELDERLY,VODAFONE LTD,46109568,6.00
Department of Health,St. Helens&Knowsley Hospitals NHS Trust,31/03/2023,Mobile Phones,WARD 5B CARE OF THE ELDERLY,VODAFONE LTD,46109568,30.00
Department of Health,St. Helens&Knowsley Hospitals NHS Trust,31/03/2023,Mobile Phones,WARD 5C ACUTE STROKE UNIT (HASU),VODAFONE LTD,46109568,31.55
Department of Health,St. Helens&Knowsley Hospitals NHS Trust,31/03/2023,Mobile Phones,WARD 5C ACUTE STROKE UNIT (HASU),VODAFONE LTD,46109568,157.75
Department of Health,St. Helens&Knowsley Hospitals NHS Trust,31/03/2023,Mobile Phones,WARD 5D ASU,VODAFONE LTD,46109568,6.00
Department of Health,St. Helens&Knowsley Hospitals NHS Trust,31/03/2023,Mobile Phones,WARD 5D ASU,VODAFONE LTD,46109568,30.00
Department of Health,St. Helens&Knowsley Hospitals NHS Trust,31/03/2023,Mobile Phones,WHIS THEATRES ANCIL & EMERG SUP STAFF,VODAFONE LTD,46109568,90.71
Department of Health,St. Helens&Knowsley Hospitals NHS Trust,31/03/2023,Mobile Phones,WHIS THEATRES ANCIL & EMERG SUP STAFF,VODAFONE LTD,46109568,453.57
Department of Health,St. Helens&Knowsley Hospitals NHS Trust,31/03/2023,Mobile Phones,WHIS THEATRES EMERG WKDAY NGTS WKEND,VODAFONE LTD,46109568,6.00
Department of Health,St. Helens&Knowsley Hospitals NHS Trust,31/03/2023,Mobile Phones,WHIS THEATRES EMERG WKDAY NGTS WKEND,VODAFONE LTD,46109568,30.00
Department of Health,St. Helens&Knowsley Hospitals NHS Trust,31/03/2023,Mobile Phones,WHISTON EQUIPMENT POOL,VODAFONE LTD,46109568,16.00
Department of Health,St. Helens&Knowsley Hospitals NHS Trust,31/03/2023,Mobile Phones,WHISTON EQUIPMENT POOL,VODAFONE LTD,46109568,80.00
Department of Health,St. Helens&Knowsley Hospitals NHS Trust,31/03/2023,Mobile Phones,WOMENS OPD,VODAFONE LTD,46109568,6.00
Department of Health,St. Helens&Knowsley Hospitals NHS Trust,31/03/2023,Mobile Phones,WOMENS OPD,VODAFONE LTD,46109568,30.00
Department of Health,St. Helens&Knowsley Hospitals NHS Trust,31/03/2023,Mobile Phones,WORKFORCE INTELLIGENCE,VODAFONE LTD,46109568,-5.42
Department of Health,St. Helens&Knowsley Hospitals NHS Trust,31/03/2023,Mobile Phones,WORKFORCE INTELLIGENCE,VODAFONE LTD,46109568,-27.09
Department of Health,St. Helens&Knowsley Hospitals NHS Trust,28/02/2023,NonNHS Trade Pybls Curr,Balance Sheet,SUPPLY CHAIN COORDINATION LIMITED,45542132,"198,019.05"
Department of Health,St. Helens&Knowsley Hospitals NHS Trust,28/02/2023,NonNHS Trade Pybls Curr,Balance Sheet,SUPPLY CHAIN COORDINATION LIMITED,45651090,"172,528.90"
Department of Health,St. Helens&Knowsley Hospitals NHS Trust,28/02/2023,NonNHS Trade Pybls Curr,Balance Sheet,SUPPLY CHAIN COORDINATION LIMITED,45901502,"167,211.55"
Department of Health,St. Helens&Knowsley Hospitals NHS Trust,28/02/2023,NonNHS Trade Pybls Curr,Balance Sheet,SUPPLY CHAIN COORDINATION LIMITED,45901654,"236,749.64"
Department of Health,St. Helens&Knowsley Hospitals NHS Trust,31/03/2023,NonNHS Trade Pybls Curr,Balance Sheet,SUPPLY CHAIN COORDINATION LIMITED,45940884,"185,746.53"
Department of Health,St. Helens&Knowsley Hospitals NHS Trust,31/03/2023,NonNHS Trade Pybls Curr,Balance Sheet,SUPPLY CHAIN COORDINATION LIMITED,45940890,"33,589.90"
Department of Health,St. Helens&Knowsley Hospitals NHS Trust,31/03/2023,NonNHS Trade Pybls Curr,Balance Sheet,SUPPLY CHAIN COORDINATION LIMITED,46061175,"48,123.69"
Department of Health,St. Helens&Knowsley Hospitals NHS Trust,31/03/2023,NonNHS Trade Pybls Curr,Balance Sheet,SUPPLY CHAIN COORDINATION LIMITED,46061185,"138,660.74"
Department of Health,St. Helens&Knowsley Hospitals NHS Trust,31/03/2023,NonNHS Trade Pybls Curr,Balance Sheet,SUPPLY CHAIN COORDINATION LIMITED,46128702,"73,950.91"
Department of Health,St. Helens&Knowsley Hospitals NHS Trust,31/03/2023,NonNHS Trade Pybls Curr,Balance Sheet,SUPPLY CHAIN COORDINATION LIMITED,46128707,"144,683.33"
Department of Health,St. Helens&Knowsley Hospitals NHS Trust,31/03/2023,NonNHS Trade Pybls Curr,Balance Sheet,SUPPLY CHAIN COORDINATION LIMITED,46234255,"67,489.19"
Department of Health,St. Helens&Knowsley Hospitals NHS Trust,31/03/2023,NonNHS Trade Pybls Curr,Balance Sheet,SUPPLY CHAIN COORDINATION LIMITED,46234256,"147,899.75"
Department of Health,St. Helens&Knowsley Hospitals NHS Trust,31/03/2023,NonNHS Trade Pybls Curr,Balance Sheet,SUPPLY CHAIN COORDINATION LIMITED,46353513,"147,858.53"
Department of Health,St. Helens&Knowsley Hospitals NHS Trust,31/03/2023,NonNHS Trade Pybls Curr,Balance Sheet,SUPPLY CHAIN COORDINATION LIMITED,46353547,"46,865.44"
Department of Health,St. Helens&Knowsley Hospitals NHS Trust,28/02/2023,Other Clinical Costs,RADIOGRAPHY WHISTON,INTEGRATED RADIOLOGICAL SERVICES LTD,45902892,"73,704.00"
Department of Health,St. Helens&Knowsley Hospitals NHS Trust,31/03/2023,Other recvables - Current,Balance Sheet,VODAFONE LTD,46109568,6.00
Department of Health,St. Helens&Knowsley Hospitals NHS Trust,31/03/2023,Other recvables - Current,Balance Sheet,VODAFONE LTD,46109568,30.00
Department of Health,St. Helens&Knowsley Hospitals NHS Trust,28/02/2023,Postage & Carriage,HOTEL SERVICES MGT WHIST,PITNEY BOWES LTD,45542137,"50,747.40"
Department of Health,St. Helens&Knowsley Hospitals NHS Trust,28/02/2023,Postage & Carriage,HOTEL SERVICES MGT ST H,PITNEY BOWES LTD,45745872,"37,528.07"
Department of Health,St. Helens&Knowsley Hospitals NHS Trust,28/02/2023,Postage & Carriage,HOTEL SERVICES MGT WHIST,PITNEY BOWES LTD,45868275,"44,617.03"
Department of Health,St. Helens&Knowsley Hospitals NHS Trust,31/03/2023,Postage & Carriage,HOTEL SERVICES MGT ST H,PITNEY BOWES LTD,46048640,"54,151.06"
Department of Health,St. Helens&Knowsley Hospitals NHS Trust,28/02/2023,Staff Consultancy & Suppt,CHIEF EXECUTIVE'S OFFICE,KPMG LLP,45481931,"68,000.00"
Department of Health,St. Helens&Knowsley Hospitals NHS Trust,28/02/2023,Staff Consultancy & Suppt,CHIEF EXECUTIVE'S OFFICE,KPMG LLP,45481931,"13,600.00"
Department of Health,St. Helens&Knowsley Hospitals NHS Trust,28/02/2023,Staff Consultancy & Suppt,CHIEF EXECUTIVE'S OFFICE,KPMG LLP,45481933,"23,091.00"
Department of Health,St. Helens&Knowsley Hospitals NHS Trust,28/02/2023,Staff Consultancy & Suppt,CHIEF EXECUTIVE'S OFFICE,KPMG LLP,45481933,"119,089.00"
Department of Health,St. Helens&Knowsley Hospitals NHS Trust,28/02/2023,Staff Consultancy & Suppt,CHIEF EXECUTIVE'S OFFICE,KPMG LLP,45481933,"41,004.00"
Department of Health,St. Helens&Knowsley Hospitals NHS Trust,28/02/2023,Staff Consultancy & Suppt,CHIEF EXECUTIVE'S OFFICE,KPMG LLP,45481933,"25,380.00"
Department of Health,St. Helens&Knowsley Hospitals NHS Trust,28/02/2023,Staff Consultancy & Suppt,CHIEF EXECUTIVE'S OFFICE,KPMG LLP,45481933,"380,443.00"
Department of Health,St. Helens&Knowsley Hospitals NHS Trust,28/02/2023,Staff Consultancy & Suppt,CHIEF EXECUTIVE'S OFFICE,KPMG LLP,45481933,"92,002.00"
Department of Health,St. Helens&Knowsley Hospitals NHS Trust,28/02/2023,Staff Consultancy & Suppt,CHIEF EXECUTIVE'S OFFICE,KPMG LLP,45481933,"32,591.00"
Department of Health,St. Helens&Knowsley Hospitals NHS Trust,28/02/2023,Staff Consultancy & Suppt,CHIEF EXECUTIVE'S OFFICE,KPMG LLP,45481933,"114,745.00"
Department of Health,St. Helens&Knowsley Hospitals NHS Trust,28/02/2023,Staff Consultancy & Suppt,CHIEF EXECUTIVE'S OFFICE,KPMG LLP,45481933,"165,669.00"
Department of Health,St. Helens&Knowsley Hospitals NHS Trust,28/02/2023,Stocks Raw Materials,Balance Sheet,BAYER PLC,45694793,"26,005.00"
Department of Health,St. Helens&Knowsley Hospitals NHS Trust,28/02/2023,Stocks Raw Materials,Balance Sheet,AMGEN LTD,45694816,"1,267.20"
Department of Health,St. Helens&Knowsley Hospitals NHS Trust,28/02/2023,Stocks Raw Materials,Balance Sheet,AMGEN LTD,45694816,477.31
Department of Health,St. Helens&Knowsley Hospitals NHS Trust,28/02/2023,Stocks Raw Materials,Balance Sheet,AMGEN LTD,45694816,"28,215.00"
Department of Health,St. Helens&Knowsley Hospitals NHS Trust,28/02/2023,Stocks Raw Materials,Balance Sheet,NOVARTIS PHARMACEUTICALS UK LTD,45694999,537.60
Department of Health,St. Helens&Knowsley Hospitals NHS Trust,28/02/2023,Stocks Raw Materials,Balance Sheet,NOVARTIS PHARMACEUTICALS UK LTD,45694999,"15,825.60"
Department of Health,St. Helens&Knowsley Hospitals NHS Trust,28/02/2023,Stocks Raw Materials,Balance Sheet,NOVARTIS PHARMACEUTICALS UK LTD,45694999,963.60
Department of Health,St. Helens&Knowsley Hospitals NHS Trust,28/02/2023,Stocks Raw Materials,Balance Sheet,NOVARTIS PHARMACEUTICALS UK LTD,45694999,49.44
Department of Health,St. Helens&Knowsley Hospitals NHS Trust,28/02/2023,Stocks Raw Materials,Balance Sheet,NOVARTIS PHARMACEUTICALS UK LTD,45694999,"5,407.78"
Department of Health,St. Helens&Knowsley Hospitals NHS Trust,28/02/2023,Stocks Raw Materials,Balance Sheet,NOVARTIS PHARMACEUTICALS UK LTD,45694999,418.83
Department of Health,St. Helens&Knowsley Hospitals NHS Trust,28/02/2023,Stocks Raw Materials,Balance Sheet,NOVARTIS PHARMACEUTICALS UK LTD,45694999,122.76
Department of Health,St. Helens&Knowsley Hospitals NHS Trust,28/02/2023,Stocks Raw Materials,Balance Sheet,NOVARTIS PHARMACEUTICALS UK LTD,45694999,"7,862.40"
Department of Health,St. Helens&Knowsley Hospitals NHS Trust,28/02/2023,Stocks Raw Materials,Balance Sheet,NOVARTIS PHARMACEUTICALS UK LTD,45694999,16.56
Department of Health,St. Helens&Knowsley Hospitals NHS Trust,28/02/2023,Stocks Raw Materials,Balance Sheet,ALLOGA UK LTD,45741132,"153,142.45"
Department of Health,St. Helens&Knowsley Hospitals NHS Trust,28/02/2023,Stocks Raw Materials,Balance Sheet,AAH PHARMACEUTICALS LTD,45741133,"124,646.95"
Department of Health,St. Helens&Knowsley Hospitals NHS Trust,28/02/2023,Stocks Raw Materials,Balance Sheet,SCIENSUS PHARMA SERVICES LTD,45741135,"164,446.65"
Department of Health,St. Helens&Knowsley Hospitals NHS Trust,28/02/2023,Stocks Raw Materials,Balance Sheet,SCIENSUS PHARMA SERVICES LTD,45741138,"108,276.93"
Department of Health,St. Helens&Knowsley Hospitals NHS Trust,28/02/2023,Stocks Raw Materials,Balance Sheet,PHOENIX HEALTHCARE DISTRIBUTION LTD,45786703,"6,084.32"
Department of Health,St. Helens&Knowsley Hospitals NHS Trust,28/02/2023,Stocks Raw Materials,Balance Sheet,PHOENIX HEALTHCARE DISTRIBUTION LTD,45786703,"30,462.57"
Department of Health,St. Helens&Knowsley Hospitals NHS Trust,28/02/2023,Stocks Raw Materials,Balance Sheet,ALLOGA UK LTD,45786705,"26,020.65"
Department of Health,St. Helens&Knowsley Hospitals NHS Trust,28/02/2023,Stocks Raw Materials,Balance Sheet,PHOENIX HEALTHCARE DISTRIBUTION LTD,45786706,"8,534.80"
Department of Health,St. Helens&Knowsley Hospitals NHS Trust,28/02/2023,Stocks Raw Materials,Balance Sheet,PHOENIX HEALTHCARE DISTRIBUTION LTD,45786706,"42,964.65"
Department of Health,St. Helens&Knowsley Hospitals NHS Trust,28/02/2023,Stocks Raw Materials,Balance Sheet,AAH PHARMACEUTICALS LTD,45786707,"8,310.55"
Department of Health,St. Helens&Knowsley Hospitals NHS Trust,28/02/2023,Stocks Raw Materials,Balance Sheet,AAH PHARMACEUTICALS LTD,45786707,"41,948.02"
Department of Health,St. Helens&Knowsley Hospitals NHS Trust,28/02/2023,Stocks Raw Materials,Balance Sheet,ALLIANCE HEALTHCARE DISTRIBUTION LTD,45786708,"7,982.47"
Department of Health,St. Helens&Knowsley Hospitals NHS Trust,28/02/2023,Stocks Raw Materials,Balance Sheet,ALLIANCE HEALTHCARE DISTRIBUTION LTD,45786708,"42,136.05"
Department of Health,St. Helens&Knowsley Hospitals NHS Trust,28/02/2023,Stocks Raw Materials,Balance Sheet,ALLOGA UK LTD,45786709,"36,589.98"
Department of Health,St. Helens&Knowsley Hospitals NHS Trust,28/02/2023,Stocks Raw Materials,Balance Sheet,PHOENIX HEALTHCARE DISTRIBUTION LTD,45786710,"8,887.14"
Department of Health,St. Helens&Knowsley Hospitals NHS Trust,28/02/2023,Stocks Raw Materials,Balance Sheet,PHOENIX HEALTHCARE DISTRIBUTION LTD,45786710,"44,438.97"
Department of Health,St. Helens&Knowsley Hospitals NHS Trust,28/02/2023,Stocks Raw Materials,Balance Sheet,AAH PHARMACEUTICALS LTD,45786711,"7,296.61"
Department of Health,St. Helens&Knowsley Hospitals NHS Trust,28/02/2023,Stocks Raw Materials,Balance Sheet,AAH PHARMACEUTICALS LTD,45786711,"39,028.12"
Department of Health,St. Helens&Knowsley Hospitals NHS Trust,28/02/2023,Stocks Raw Materials,Balance Sheet,ALLIANCE HEALTHCARE DISTRIBUTION LTD,45786712,"8,235.07"
Department of Health,St. Helens&Knowsley Hospitals NHS Trust,28/02/2023,Stocks Raw Materials,Balance Sheet,ALLIANCE HEALTHCARE DISTRIBUTION LTD,45786712,"41,554.04"
Department of Health,St. Helens&Knowsley Hospitals NHS Trust,28/02/2023,Stocks Raw Materials,Balance Sheet,BAYER PLC,45871952,"26,005.00"
Department of Health,St. Helens&Knowsley Hospitals NHS Trust,31/03/2023,Stocks Raw Materials,Balance Sheet,SCIENSUS PHARMA SERVICES LTD,46000734,"220,517.84"
Department of Health,St. Helens&Knowsley Hospitals NHS Trust,31/03/2023,Stocks Raw Materials,Balance Sheet,SCIENSUS PHARMA SERVICES LTD,46000737,"178,101.55"
Department of Health,St. Helens&Knowsley Hospitals NHS Trust,31/03/2023,Stocks Raw Materials,Balance Sheet,AAH PHARMACEUTICALS LTD,46000741,"150,342.27"
Department of Health,St. Helens&Knowsley Hospitals NHS Trust,31/03/2023,Stocks Raw Materials,Balance Sheet,SCIENSUS PHARMA SERVICES LTD,46000743,"184,168.50"
Department of Health,St. Helens&Knowsley Hospitals NHS Trust,31/03/2023,Stocks Raw Materials,Balance Sheet,ALLOGA UK LTD,46026021,"40,694.82"
Department of Health,St. Helens&Knowsley Hospitals NHS Trust,31/03/2023,Stocks Raw Materials,Balance Sheet,SCIENSUS PHARMA SERVICES LTD,46026024,"43,415.37"
Department of Health,St. Helens&Knowsley Hospitals NHS Trust,31/03/2023,Stocks Raw Materials,Balance Sheet,PHOENIX HEALTHCARE DISTRIBUTION LTD,46026027,"9,427.19"
Department of Health,St. Helens&Knowsley Hospitals NHS Trust,31/03/2023,Stocks Raw Materials,Balance Sheet,PHOENIX HEALTHCARE DISTRIBUTION LTD,46026027,"47,224.33"
Department of Health,St. Helens&Knowsley Hospitals NHS Trust,31/03/2023,Stocks Raw Materials,Balance Sheet,ALLIANCE HEALTHCARE DISTRIBUTION LTD,46026028,"49,974.84"
Department of Health,St. Helens&Knowsley Hospitals NHS Trust,31/03/2023,Stocks Raw Materials,Balance Sheet,ALLIANCE HEALTHCARE DISTRIBUTION LTD,46026030,"13,003.52"
Department of Health,St. Helens&Knowsley Hospitals NHS Trust,31/03/2023,Stocks Raw Materials,Balance Sheet,ALLIANCE HEALTHCARE DISTRIBUTION LTD,46026030,"66,380.55"
Department of Health,St. Helens&Knowsley Hospitals NHS Trust,31/03/2023,Stocks Raw Materials,Balance Sheet,ALLIANCE HEALTHCARE DISTRIBUTION LTD,46026032,"8,603.50"
Department of Health,St. Helens&Knowsley Hospitals NHS Trust,31/03/2023,Stocks Raw Materials,Balance Sheet,ALLIANCE HEALTHCARE DISTRIBUTION LTD,46026032,"43,732.36"
Department of Health,St. Helens&Knowsley Hospitals NHS Trust,31/03/2023,Stocks Raw Materials,Balance Sheet,PHOENIX HEALTHCARE DISTRIBUTION LTD,46026033,"41,132.93"
Department of Health,St. Helens&Knowsley Hospitals NHS Trust,31/03/2023,Stocks Raw Materials,Balance Sheet,AAH PHARMACEUTICALS LTD,46026035,"8,181.28"
Department of Health,St. Helens&Knowsley Hospitals NHS Trust,31/03/2023,Stocks Raw Materials,Balance Sheet,AAH PHARMACEUTICALS LTD,46026035,"43,196.41"
Department of Health,St. Helens&Knowsley Hospitals NHS Trust,31/03/2023,Stocks Raw Materials,Balance Sheet,ALLIANCE HEALTHCARE DISTRIBUTION LTD,46026036,"6,235.82"
Department of Health,St. Helens&Knowsley Hospitals NHS Trust,31/03/2023,Stocks Raw Materials,Balance Sheet,ALLIANCE HEALTHCARE DISTRIBUTION LTD,46026036,"32,531.30"
Department of Health,St. Helens&Knowsley Hospitals NHS Trust,31/03/2023,Stocks Raw Materials,Balance Sheet,SCIENSUS PHARMA SERVICES LTD,46026038,"33,129.51"
Department of Health,St. Helens&Knowsley Hospitals NHS Trust,31/03/2023,Stocks Raw Materials,Balance Sheet,PHOENIX HEALTHCARE DISTRIBUTION LTD,46026041,"8,810.84"
Department of Health,St. Helens&Knowsley Hospitals NHS Trust,31/03/2023,Stocks Raw Materials,Balance Sheet,PHOENIX HEALTHCARE DISTRIBUTION LTD,46026041,"44,074.90"
Department of Health,St. Helens&Knowsley Hospitals NHS Trust,31/03/2023,Stocks Raw Materials,Balance Sheet,PHOENIX HEALTHCARE DISTRIBUTION LTD,46026042,"10,595.43"
Department of Health,St. Helens&Knowsley Hospitals NHS Trust,31/03/2023,Stocks Raw Materials,Balance Sheet,PHOENIX HEALTHCARE DISTRIBUTION LTD,46026042,"53,103.97"
Department of Health,St. Helens&Knowsley Hospitals NHS Trust,31/03/2023,Stocks Raw Materials,Balance Sheet,MAWDSLEY BROOKS & CO LTD,46026043,"4,862.54"
Department of Health,St. Helens&Knowsley Hospitals NHS Trust,31/03/2023,Stocks Raw Materials,Balance Sheet,MAWDSLEY BROOKS & CO LTD,46026043,"24,728.94"
Department of Health,St. Helens&Knowsley Hospitals NHS Trust,31/03/2023,Stocks Raw Materials,Balance Sheet,ALLIANCE HEALTHCARE DISTRIBUTION LTD,46026044,"10,011.27"
Department of Health,St. Helens&Knowsley Hospitals NHS Trust,31/03/2023,Stocks Raw Materials,Balance Sheet,ALLIANCE HEALTHCARE DISTRIBUTION LTD,46026044,"51,252.11"
Department of Health,St. Helens&Knowsley Hospitals NHS Trust,31/03/2023,Stocks Raw Materials,Balance Sheet,AAH PHARMACEUTICALS LTD,46026045,"8,078.73"
Department of Health,St. Helens&Knowsley Hospitals NHS Trust,31/03/2023,Stocks Raw Materials,Balance Sheet,AAH PHARMACEUTICALS LTD,46026045,"40,826.20"
Department of Health,St. Helens&Knowsley Hospitals NHS Trust,31/03/2023,Stocks Raw Materials,Balance Sheet,NOVARTIS PHARMACEUTICALS UK LTD,46087032,"21,100.80"
Department of Health,St. Helens&Knowsley Hospitals NHS Trust,31/03/2023,Stocks Raw Materials,Balance Sheet,NOVARTIS PHARMACEUTICALS UK LTD,46087032,"3,862.64"
Department of Health,St. Helens&Knowsley Hospitals NHS Trust,31/03/2023,Stocks Raw Materials,Balance Sheet,NOVARTIS PHARMACEUTICALS UK LTD,46087032,"8,316.00"
Department of Health,St. Helens&Knowsley Hospitals NHS Trust,31/03/2023,Stocks Raw Materials,Balance Sheet,NOVARTIS PHARMACEUTICALS UK LTD,46087032,"3,231.32"
Department of Health,St. Helens&Knowsley Hospitals NHS Trust,31/03/2023,Stocks Raw Materials,Balance Sheet,BAYER PLC,46195826,"33,760.87"
Department of Health,St. Helens&Knowsley Hospitals NHS Trust,31/03/2023,Stocks Raw Materials,Balance Sheet,NOVARTIS PHARMACEUTICALS UK LTD,46195837,"26,376.00"
Department of Health,St. Helens&Knowsley Hospitals NHS Trust,31/03/2023,Stocks Raw Materials,Balance Sheet,NOVARTIS PHARMACEUTICALS UK LTD,46195837,"4,807.37"
Department of Health,St. Helens&Knowsley Hospitals NHS Trust,31/03/2023,Stocks Raw Materials,Balance Sheet,AMGEN LTD,46195841,"1,180.22"
Department of Health,St. Helens&Knowsley Hospitals NHS Trust,31/03/2023,Stocks Raw Materials,Balance Sheet,AMGEN LTD,46195841,"10,411.20"
Department of Health,St. Helens&Knowsley Hospitals NHS Trust,31/03/2023,Stocks Raw Materials,Balance Sheet,AMGEN LTD,46195841,761.12
Department of Health,St. Helens&Knowsley Hospitals NHS Trust,31/03/2023,Stocks Raw Materials,Balance Sheet,AMGEN LTD,46195841,133.20
Department of Health,St. Helens&Knowsley Hospitals NHS Trust,31/03/2023,Stocks Raw Materials,Balance Sheet,AMGEN LTD,46195841,"21,780.00"
Department of Health,St. Helens&Knowsley Hospitals NHS Trust,31/03/2023,Stocks Raw Materials,Balance Sheet,SCIENSUS PHARMA SERVICES LTD,46234266,"152,121.02"
Department of Health,St. Helens&Knowsley Hospitals NHS Trust,31/03/2023,Stocks Raw Materials,Balance Sheet,AAH PHARMACEUTICALS LTD,46265502,"47,810.85"
Department of Health,St. Helens&Knowsley Hospitals NHS Trust,31/03/2023,Stocks Raw Materials,Balance Sheet,PHOENIX HEALTHCARE DISTRIBUTION LTD,46265503,"54,356.35"
Department of Health,St. Helens&Knowsley Hospitals NHS Trust,31/03/2023,Stocks Raw Materials,Balance Sheet,ALLIANCE HEALTHCARE DISTRIBUTION LTD,46265504,"50,986.82"
Department of Health,St. Helens&Knowsley Hospitals NHS Trust,31/03/2023,Stocks Raw Materials,Balance Sheet,AAH PHARMACEUTICALS LTD,46265506,"66,507.62"
Department of Health,St. Helens&Knowsley Hospitals NHS Trust,31/03/2023,Stocks Raw Materials,Balance Sheet,PHOENIX HEALTHCARE DISTRIBUTION LTD,46265507,"38,056.24"
Department of Health,St. Helens&Knowsley Hospitals NHS Trust,31/03/2023,Stocks Raw Materials,Balance Sheet,MAWDSLEY BROOKS & CO LTD,46265508,"63,133.57"
Department of Health,St. Helens&Knowsley Hospitals NHS Trust,31/03/2023,Stocks Raw Materials,Balance Sheet,ROCHE PRODUCTS LTD,46268756,"16,296.00"
Department of Health,St. Helens&Knowsley Hospitals NHS Trust,31/03/2023,Stocks Raw Materials,Balance Sheet,ROCHE PRODUCTS LTD,46268756,"12,096.00"
Department of Health,St. Helens&Knowsley Hospitals NHS Trust,31/03/2023,Stocks Raw Materials,Balance Sheet,NOVARTIS PHARMACEUTICALS UK LTD,46268843,"26,903.52"
Department of Health,St. Helens&Knowsley Hospitals NHS Trust,31/03/2023,Stocks Raw Materials,Balance Sheet,NOVARTIS PHARMACEUTICALS UK LTD,46268843,"3,359.38"
Department of Health,St. Helens&Knowsley Hospitals NHS Trust,31/03/2023,Stocks Raw Materials,Balance Sheet,BAYER PLC,46268948,"28,742.36"
Department of Health,St. Helens&Knowsley Hospitals NHS Trust,31/03/2023,Stocks Raw Materials,Balance Sheet,ALLIANCE HEALTHCARE DISTRIBUTION LTD,46327593,"34,801.12"
Department of Health,St. Helens&Knowsley Hospitals NHS Trust,31/03/2023,Superannuation - Current,Balance Sheet,NEST,45971869,"27,769.38"
Department of Health,St. Helens&Knowsley Hospitals NHS Trust,31/03/2023,Superannuation - Current,Balance Sheet,NEST,46265505,"27,319.59"
Department of Health,St. Helens&Knowsley Hospitals NHS Trust,31/03/2023,Training Expenses,REGIONAL CANCER TRANSFORMATION,FOUR EYES INSIGHT LTD,46015365,"30,000.00"
Department of Health,St. Helens&Knowsley Hospitals NHS Trust,28/02/2023,Water,RATES/WATER WHISTON,WATER PLUS LTD,45745882,"26,482.69"
Department of Health,St. Helens&Knowsley Hospitals NHS Trust,28/02/2023,Water,RATES/WATER WHISTON,WATER PLUS LTD,45823205,"81,400.65"
Department of Health,St. Helens&Knowsley Hospitals NHS Trust,28/02/2023,X-Ray Equipment Purchase,RADIOGRAPHY WHISTON,DIAGNOSTIC HEALTHCARE LTD,43714440,"17,800.00"
Department of Health,St. Helens&Knowsley Hospitals NHS Trust,28/02/2023,X-Ray Equipment Purchase,RADIOGRAPHY WHISTON,DIAGNOSTIC HEALTHCARE LTD,43714440,"16,500.00"
Department of Health,St. Helens&Knowsley Hospitals NHS Trust,28/02/2023,X-Ray Equipment Purchase,RADIOGRAPHY WHISTON,DIAGNOSTIC HEALTHCARE LTD,44060186,"10,500.00"
Department of Health,St. Helens&Knowsley Hospitals NHS Trust,28/02/2023,X-Ray Equipment Purchase,RADIOGRAPHY WHISTON,DIAGNOSTIC HEALTHCARE LTD,44060186,"28,700.00"
Department of Health,St. Helens&Knowsley Hospitals NHS Trust,28/02/2023,X-Ray Equipment Purchase,RADIOGRAPHY WHISTON,DIAGNOSTIC HEALTHCARE LTD,44489182,"41,650.00"
Department of Health,St. Helens&Knowsley Hospitals NHS Trust,28/02/2023,X-Ray Equipment Purchase,RADIOGRAPHY WHISTON,DIAGNOSTIC HEALTHCARE LTD,44865934,"36,750.00"
Department of Health,St. Helens&Knowsley Hospitals NHS Trust,28/02/2023,X-Ray Equipment Purchase,RADIOGRAPHY WHISTON,DIAGNOSTIC HEALTHCARE LTD,45640118,"41,650.00"
Department of Health,St. Helens&Knowsley Hospitals NHS Trust,31/03/2023,X-Ray Equipment Purchase,RADIOGRAPHY WHISTON,DIAGNOSTIC HEALTHCARE LTD,46266845,"66,150.00"
